{"text_format":"1","workbook":"xlsx","n_sheets":5,"sheets":["RL krav full IFRS","Ikke besvart","Ja-svar","Nei-svar","IA-svar"],"not_rendered":{"charts":0,"images":0,"macros":1,"external_links":0,"defined_names":9,"comments":0,"pivot_tables":0},"unopened":[],"bounds":{"document_bytes":16777216,"sheet_cells":100000,"rows_first":2000,"rows_last":500,"rows_between":2000,"halvings":0,"cell_chars":16384,"cell_head_chars":4096},"cells_cut":0,"cells_raw":0,"read":"whole","date_system":"1900"}

{"sheet":"RL krav full IFRS","index":0,"n_rows":125,"n_cols":15,"rows_kept":125,"cut":false,"hidden":false,"merged":[[0,0,0,2]]}
["Sjekkliste for pliktige noteopplysninger etter regnskapsloven for foretak som bruker full IFRS i selskapsregnskap eller konsernregnskap",null,null,"Utfylt:",null,null,null,null,null,null,null,null,null,null,"Ordinær"]
["Klient:",null,null,"Review:",null,null,null,null,null,null,null,null,null,"Ikke besvart:",{"$f":"+'Ikke besvart'!E1","v":76}]
["År:",2024,null,null,null,null,null,null,"Fyll ut med \"X\"",null,null,null,null,"Ja-svar:",{"$f":"+'Ja-svar'!C1","v":0}]
[null,null,null,null,null,null,null,null,null,null,null,null,null,"Nei-svar:",{"$f":"+'Nei-svar'!C1","v":0}]
[null,null,null,null,null,null,null,null,null,null,null,null,null,"IA-svar:",{"$f":"+'IA-svar'!C1","v":0}]
[null,"Spørsmål","Ref. ","Ekskludering:",null,null,null,null,"Ja","Nei","I/A","Kommentar",null,"Sum:",{"$f":"SUM(O2:O5)","v":76}]
["Generelt"]
[null,"Ifølge regnskapsloven er foretak som følger full IFRS i utgangspunktet fritatt fra kravene til noteopplysninger i regnskapsloven, jf. rskl. § 3-9. Ifølge rskl. § 3-1 fjerde ledd plikter man likevel å følge noen definerte notekrav. (Noen av disse kravene vil ofte være tilfredsstillende dekket ved å følge IFRS-kravene, dvs. at ikke alle kravene nedenfor automatisk fører til tilleggsopplysninger i forhold til IFRS.) For å sikre etterlevelse av de norske tilleggskravene for foretak som bruker IFRS i selskapsregnskapet eller konsernregnskapet skal denne sjekklisten fylles ut i tillegg til IFRS notesjekkliste."]
["Finansielle anleggsmidler"]
[null,"Finansielle anleggsmidler omfatter:\n• Investeringer i datterselskap (DS), tilknyttet selskap (TS), felles kontrollert virksomhet (FKV) og andre foretak i samme konsern.\n• Lån til foretak i samme konsern\n• Lån til TS og FKV \n• Investeringer i andre aksjer og andeler"]
["Investering i datterselskap"]
[1,"Ved investering i datterselskap, er det opplyst om;\n• Foretaksnavn?","rskl § 7-15\nførste ledd",null,{"$f":"IF(I12<>\"\",1,0)","v":0},{"$f":"IF(J12<>\"\",1,0)","v":0},{"$f":"IF(K12<>\"\",1,0)","v":0},{"$f":"IF(SUM(E12:G12)>1,\"Velg kun et alt.\",\"\")","v":""},null,null,null,null,null,{"$f":"IF(J12<>\"\",\"Du har satt X for at forholdet ikke er avklart. Gi en nærmere foklaring i kommentarfeltet.\",\"\")","v":""}]
[2,"• Forretningskontor?",null,null,{"$f":"IF(I13<>\"\",1,0)","v":0},0,0,{"$f":"IF(SUM(E13:G13)>1,\"Velg kun et alt.\",\"\")","v":""},null,null,null,null,null,{"$f":"IF(J13<>\"\",\"Du har satt X for at forholdet ikke er avklart. Gi en nærmere foklaring i kommentarfeltet.\",\"\")","v":""}]
[3,"• Eierandel og stemmeandel?",null,null,0,0,0,{"$f":"IF(SUM(E14:G14)>1,\"Velg kun et alt.\",\"\")","v":""},null,null,null,null,null,{"$f":"IF(J14<>\"\",\"Du har satt X for at forholdet ikke er avklart. Gi en nærmere foklaring i kommentarfeltet.\",\"\")","v":""}]
[4,"Datterselskap som ikke konsolideres:\nFor datterselskap som regnskapsføres etter kostmetoden og som ikke konsolideres, er det i tillegg gitt opplysning om egenkapital og resultat ifølge siste årsregnskap?","rskl § 7-15 annet ledd",null,{"$f":"IF(I15<>\"\",1,0)","v":0},{"$f":"IF(J15<>\"\",1,0)","v":0},{"$f":"IF(K15<>\"\",1,0)","v":0},{"$f":"IF(SUM(E15:G15)>1,\"Velg kun et alt.\",\"\")","v":""},null,null,null,null,null,""]
["Datterselskapets regnskap",null,null,null,null,null,null,null,null,null,null,null,null,""]
[5,"Regnskapspliktige som selv er datterselskap, er det opplyst om:\n• firma og forretningskontor for morselskap som utarbeider konsernregnskap der den regnskapspliktige inngår i konsolideringen?","rskl § 7-15 tredje ledd",null,{"$f":"IF(I17<>\"\",1,0)","v":0},0,0,{"$f":"IF(SUM(E17:G17)>1,\"Velg kun et alt.\",\"\")","v":""},null,null,null,null,null,""]
[6,"• hvor en kan få utlevert konsernregnskapene?",null,null,0,0,0,{"$f":"IF(SUM(E18:G18)>1,\"Velg kun et alt.\",\"\")","v":""},null,null,null,null,null,""]
["Investering i tilknyttet selskap (TS) og deltakelse i felles kontrollert virksomhet (FKV)",null,null,null,null,null,null,null,null,null,null,null,null,""]
[7,"For hver enkelt investering, er det opplyst om\n• Navn og forretningskontor?","rskl § 7-15 første ledd",null,{"$f":"IF(I20<>\"\",1,0)","v":0},0,0,{"$f":"IF(SUM(E20:G20)>1,\"Velg kun et alt.\",\"\")","v":""},null,null,null,null,null,""]
[8,"• Eierandel og stemmeandel?",null,null,0,0,0,{"$f":"IF(SUM(E21:G21)>1,\"Velg kun et alt.\",\"\")","v":""},null,null,null,null,null,""]
[9,"TS regnskapsført etter kostmetoden:\nFor tilknyttede selskaper som regnskapsføres etter kostmetoden, er det i tillegg gitt opplysning om egenkapital og resultat ifølge siste årsregnskap?","rskl § 7-15 annet ledd",null,{"$f":"IF(I22<>\"\",1,0)","v":0},{"$f":"IF(J22<>\"\",1,0)","v":0},{"$f":"IF(K22<>\"\",1,0)","v":0},{"$f":"IF(SUM(E22:G22)>1,\"Velg kun et alt.\",\"\")","v":""},null,null,null,null,null,""]
["Andre aksjer og andeler",null,null,null,{"$f":"IF(I23<>\"\",1,0)","v":0},null,null,null,null,null,null,null,null,""]
[10,"Investeringer i aksjer/andeler hvor man eier mer enn 10 % eller hvor investeringen utgjør mer enn 50 % av eierselskapets egenkapital:\nEr investeringene spesifisert etter selskap, med mindre investeringen omfattes av RL § 7-15 (DS, TS, FKV) og RL § 7-16 (Egenkapitalmetoden), dvs. TS/FKV som regnskapsføres etter egenkapitalmetoden?","rskl § 7-18",null,{"$f":"IF(I24<>\"\",1,0)","v":0},0,0,{"$f":"IF(SUM(E24:G24)>1,\"Velg kun et alt.\",\"\")","v":""},null,null,null,null,null,""]
[11,"For hvert selskap, er det opplyst om;\n• Balanseført verdi?","rskl § 7-18",null,0,0,0,{"$f":"IF(SUM(E25:G25)>1,\"Velg kun et alt.\",\"\")","v":""},null,null,null,null,null,""]
[12,"• Eventuell markedsverdi?",null,null,0,0,0,{"$f":"IF(SUM(E26:G26)>1,\"Velg kun et alt.\",\"\")","v":""},null,null,null,null,null,""]
[13,"• Eierandel?",null,null,0,0,0,{"$f":"IF(SUM(E27:G27)>1,\"Velg kun et alt.\",\"\")","v":""},null,null,null,null,null,""]
["Egenkapital",null,null,null,null,0,null,null,null,null,null,{"$f":"IF(J28<>\"\",\"Du har satt X for at forholdet ikke er avklart. Gi en nærmere foklaring i kommentarfeltet.\",\"\")","v":""},null,""]
[14,"Aksjekapital og aksjonærer\nEr det opplyst om:\n• Aksjekapitalens størrelse?","rskl § 7-26",null,{"$f":"IF(I29<>\"\",1,0)","v":0},{"$f":"IF(J29<>\"\",1,0)","v":0},{"$f":"IF(K29<>\"\",1,0)","v":0},{"$f":"IF(SUM(E29:G29)>1,\"Velg kun et alt.\",\"\")","v":""},null,null,null,null,null,""]
[15,"• Aksjenes pålydende (fordelt på hver aksjeklasse hvis det er flere aksjeklasser)?",null,null,{"$f":"IF(I30<>\"\",1,0)","v":0},0,0,"",null,null,null,null,null,""]
[16,"• Vedtektsbestemmelser om stemmerett hvis ikke alle aksjene har samme rett?",null,null,0,{"$f":"IF(J31<>\"\",1,0)","v":0},{"$f":"IF(K31<>\"\",1,0)","v":0},"",null,null,null,null,null,""]
[17,"• Alle rettigheter som kan medføre at det blir utstedt nye aksjer med angivelse av hovedtrekkene i vilkår som gjelder for retten?",null,null,{"$f":"IF(I32<>\"\",1,0)","v":0},{"$f":"IF(J32<>\"\",1,0)","v":0},{"$f":"IF(K32<>\"\",1,0)","v":0},"",null,null,null,null,null,""]
[18,"• Selskapets 20 største aksjeeiere og deres eierandeler (kan utelate aksjeeiere som eier mindre enn 1 %)?",null,null,0,0,0,"",null,null,null,null,null,""]
[19,"• Aksjer/andeler og rettigheter til aksjer/andeler som eies av daglig leder og medlemmer av styret og bedriftsforsamling?",null,null,{"$f":"IF(I34<>\"\",1,0)","v":0},0,0,"",null,null,null,null,null,""]
[{"$f":"+A34+1","v":20},"For foretak av allmenn interesse, er det opplyst om aksjer/andeler og rettigheter til aksjer/andeler som eies av hver enkelt ledende ansatte og deres personlig nærstående samt hvert enkelt medlem av styret og deres personlig nærstående?","rskl § 7-26, 4. ledd",null,0,0,0,{"$f":"IF(SUM(E35:G35)>1,\"Velg kun et alt.\",\"\")","v":""},null,null,null,null,null,""]
[null,"Som personlig nærstående regnes:\n-  ektefelle og samboer\n-  mindreårige barn/samboers mindreårige barn\n-  foretak hvor vedkommende (eller mindreårige)\n har bestemmende innflytelse etter rskl § 1-3","rskl § 7-26, 4. ledd",null,null,null,null,null,null,null,null,null,null,""]
[{"$f":"+A35+1","v":21},"For regnskapspliktige som er utstedere med Norge som hjemstat etter vphl § 5-4, er det opplyst om vesentlige indirekte aksjebesittelser i selskapet?","rskl § 7-26, 5. ledd",null,{"$f":"IF(I37<>\"\",1,0)","v":0},{"$f":"IF(J37<>\"\",1,0)","v":0},{"$f":"IF(K37<>\"\",1,0)","v":0},{"$f":"IF(SUM(E37:G37)>1,\"Velg kun et alt.\",\"\")","v":""},null,null,null,null,null,""]
[null,"Aksjebesittelser som representerer minst 10% av stemmerettene i selskapet, regnes som vesentlige etter denne bestemmelsen. Se nærmere omtale i kommentarfelt til spørsmålet over.","rskl § 7-26, 5. ledd",null,null,null,null,null,null,null,null,null,null,""]
["Egne aksjer",null,null,null,null,null,null,null,null,null,null,null,null,""]
[{"$f":"+A37+1","v":22},"Dersom egne aksjer ikke vises på egen linje under selskapskapitalen i balansen eller i oppstilling av endringer i egenkapitalen, er spesifikasjon gitt i note? ","rskl § 7-27",null,{"$f":"IF(I40<>\"\",1,0)","v":0},0,0,{"$f":"IF(SUM(E40:G40)>1,\"Velg kun et alt.\",\"\")","v":""},null,null,null,null,null,""]
[{"$f":"+A40+1","v":23},"Dersom selskapet har en beholdning av egne aksjer etter aksjeloven kapittel 9, er det opplyst om antallet, aksjenes pålydende verdi og den andel aksjene utgjør av aksjekapitalen?","rskl § 7-27",null,0,0,0,{"$f":"IF(SUM(E41:G41)>1,\"Velg kun et alt.\",\"\")","v":""},null,null,null,null,null,""]
[{"$f":"+A41+1","v":24},"Dersom det har vært endringer i beholdning av egne aksjer og datterselskapenes beholdning av aksjer i morselskapet i løpet av regnskapsåret, er det minst opplyst om følgende:\n• bakgrunn for erverv som har funnet sted\n• antall aksjer som er ervervet, vederlag for disse og den andel de utgjør av aksjekapitalen\n• antall aksjer som er avhendet, vederlaget for disse og den andel de utgjør av aksjekapitalen?","rskl § 7-27",null,0,0,0,{"$f":"IF(SUM(E42:G42)>1,\"Velg kun et alt.\",\"\")","v":""},null,null,null,null,null,""]
["Antall årsverk",null,null,null,null,null,null,null,null,null,null,null,null,""]
[{"$f":"+A42+1","v":25},"Er det opplyst om antall årsverk som har vært sysselsatt i regnskapsåret?","rskl § 7-30",null,{"$f":"IF(I44<>\"\",1,0)","v":0},0,0,{"$f":"IF(SUM(E44:G44)>1,\"Velg kun et alt.\",\"\")","v":""},null,null,null,null,null,""]
[{"$f":"+A44+1","v":26},"Dersom selskapet ikke har noen ansatte, er dette opplyst?","rskl § 7-30",null,0,0,0,{"$f":"IF(SUM(E45:G45)>1,\"Velg kun et alt.\",\"\")","v":""},null,null,null,null,null,""]
["Obligatorisk tjenestepensjon",null,null,null,null,null,null,null,null,null,null,null,null,""]
[{"$f":"+A45+1","v":27},"Er det opplyst om foretaket er pliktig til å ha tjenestepensjonsordning etter lov om obligatorisk tjenestepensjon?","rskl § 7-30a",null,{"$f":"IF(I47<>\"\",1,0)","v":0},0,0,{"$f":"IF(SUM(E47:G47)>1,\"Velg kun et alt.\",\"\")","v":""},null,null,null,null,null,""]
[{"$f":"+A47+1","v":28},"Er det opplyst om foretaket har pensjonsordning som oppfyller kravene ?",null,null,0,0,0,{"$f":"IF(SUM(E48:G48)>1,\"Velg kun et alt.\",\"\")","v":""},null,null,null,null,null,""]
["Ytelser til ledende ansatte og tillitsvalgte i foretak som ikke er av allmenn interesse",null,null,null,null,null,null,null,null,null,null,null,null,""]
[{"$f":"+A48+1","v":29},"Er det opplyst om samlede utgifter til lønn, pensjonsforpliktelser og annen godtgjørelse til:\n• daglig leder\n• styremedlemmer \n• medlemmer i bedriftsforsamlingen ","rskl § 7-31, 1. ledd",null,{"$f":"IF(I50<>\"\",1,0)","v":0},0,0,{"$f":"IF(SUM(E50:G50)>1,\"Velg kun et alt.\",\"\")","v":""},null,null,null,null,null,""]
[{"$f":"+A50+1","v":30},"Er det opplyst følgende om ytelser til daglig leder og leder av styret;\n• Arten og omfanget av forpliktelser til å gi særskilt vederlag ved opphør eller endring av ansettelsesforhold / verv\n• Avtaler om bonuser, overskuddsdeling og lignende fordeler","rskl § 7-31, 2. ledd",null,0,0,0,{"$f":"IF(SUM(E51:G51)>1,\"Velg kun et alt.\",\"\")","v":""},null,null,null,null,null,""]
[{"$f":"+A51+1","v":31},"Dersom selskapet ikke har hatt slike utgifter eller forpliktelser som beskrevet i de to foregående punkt, er det opplyst særskilt om det?","rskl § 7-31, 3. ledd",null,0,0,0,{"$f":"IF(SUM(E52:G52)>1,\"Velg kun et alt.\",\"\")","v":""},null,null,null,null,null,""]
[{"$f":"+A52+1","v":32},"Er det opplyst om forpliktelser knyttet til aksjeverdibaserte godtgjørelser til fordel for ansatte og tillitsvalgte?","rskl § 7-31, 4. ledd 1. punktum",null,0,0,0,{"$f":"IF(SUM(E53:G53)>1,\"Velg kun et alt.\",\"\")","v":""},null,null,null,null,null,""]
["Følgende krav gjelder ikke heleide datterselskaper i konsern (spørsmål 35 til 41):",null,null,null,null,null,null,null,null,null,null,null,null,""]
[{"$f":"+A53+1","v":33},"Er det opplyst om arten og omfanget av de enkelte avtaler om aksjeverdibaserte godtgjørelser til fordel for:\n• de enkelte ledende ansatte\n• de enkelte medlemmer av styre\n• de enkelte medlemmer av kontrollkomite\n• de enkelte medlemmer av andre valgte selskapsorganer med unntak av bedriftsforsamlingen","rskl § 7-31, 4. ledd 2. punktum",null,null,null,null,null,null,null,null,null,null,""]
[null,"Opplysningskrav for aksjeverdibaserte godtgjørelser som utelukkende gjelder utdeling av aksjer, egenkapitalbevis eller opsjoner, se spørsmål 36 til 39:","rskl § 7-31, 5. ledd ",null,null,null,null,null,null,null,null,null,null,""]
[null,"Omfatter opplysningene i spørsmål 35 følgende:",null,null,null,null,null,null,null,null,null,null,null,""]
[{"$f":"+A55+1","v":34},"• antall opsjoner som er tildelt, samt aksjer eller egenkapitalbevis som er gitt av foretaket i løpet av regnskapsåret, og vilkårene for disse,",null,null,null,null,null,null,null,null,null,null,null,""]
[{"$f":"+A58+1","v":35},"• antall opsjoner som er innløst i løpet av regnskapsåret, og for hver av disse antall aksjer eller egenkapitalbevis som eventuelt er utdelt, innløsningskursen og eventuelle utbetalinger fra selskapet knyttet til innløsningen",null,null,null,null,null,null,null,null,null,null,null,""]
[{"$f":"+A59+1","v":36},"• antall opsjoner som ikke er innløst ved regnskapsårets slutt, innløsningskursen, forfallstidspunktet og hovedbetingelsene for å utøve rettighetene",null,null,null,null,null,null,null,null,null,null,null,""]
[{"$f":"+A60+1","v":37},"• endringer i vilkår knyttet til eksisterende aksjeverdibaserte godtgjørelser i løpet av regnskapsåret.",null,null,null,null,null,null,null,null,null,null,null,""]
[null,"Opplysningskrav for alle andre aksjeverdibaserte godtgjørelser, se spørsmål 40 til 41:","rskl § 7-31, 4. ledd 3. og 4. punktum",null,null,null,null,null,null,null,null,null,null,""]
[{"$f":"+A61+1","v":38},"Omfatter opplysningene i spørsmål 35 minst en beskrivelse av på hvilken måte utviklingen av verdien til aksjene eller egenkapitalbevisene i selskapet eller i andre selskaper i samme konsern, har påvirket beregningen av den godtgjørelsen som er utbetalt i regnskapsåret?",null,null,null,null,null,null,null,null,null,null,null,""]
[{"$f":"+A63+1","v":39},"For avtaler om aksjeverdibaserte godtgjøelser som ikke er avsluttet ved regnskapsårets slutt, er det opplyst om\n• avtalens løpetid, og \n• en beskrivelse av på hvilken måte det er avtalt at utviklingen i aksjenes verdi vil påvirke beregningen av fremtidige utbetalinger?",null,null,null,null,null,null,null,null,null,null,null,""]
["Ytelser til ledende personer mv i foretak allmenn interesse",null,null,null,null,null,null,null,null,null,null,null,null,""]
[null,"Opplysningene om ytelser til ledende personer mv. kan i stedet gis i en rapport om godtgjørelse til ledende personer, som i så tilfelle formelt blir en del av årsberetningen.","rskl § 7-31b 11. ledd",null,{"$f":"IF(I66<>\"\",1,0)","v":0},{"$f":"IF(J66<>\"\",1,0)","v":0},{"$f":"IF(K66<>\"\",1,0)","v":0},{"$f":"IF(SUM(E66:G66)>1,\"Velg kun et alt.\",\"\")","v":""},null,null,null,null,null,""]
[null,"For allmennaksjeselskaper med aksjer tatt opp til handel på regulert marked, kan opplysninger etter denne paragrafen og eventuelt § 7-32 første ledd i stedet for i noter til årsregnskapet, gis i rapport etter allmennaksjeloven § 6-16 b.","rskl § 7-31b 13. ledd",null,null,null,null,null,null,null,null,null,null,""]
[{"$f":"+A64+1","v":40},"Har foretaket opplyst om samlet godtgjørelse og andre fordeler som er gitt til de enkelte ledende ansatte og de enkelte medlemmene av henholdsvis styret, kontrollkomiteen og andre valgte selskapsorganer med unntak av bedriftsforsamlingen?","rskl § 7-31b 1. ledd",null,{"$f":"IF(I68<>\"\",1,0)","v":0},0,0,{"$f":"IF(SUM(E68:G68)>1,\"Velg kun et alt.\",\"\")","v":""},null,null,null,null,null,""]
[{"$f":"+A68+1","v":41},"Er det opplyst om forpliktelser knyttet til aksjeverdibaserte godtgjørelser til fordel for ansatte og tillitsvalgte?","rskl § 7-31b 2. ledd",null,null,null,null,null,null,null,null,null,null,""]
[{"$f":"+A69+1","v":42},"Er det for hver person omfattet av første ledd, som har hatt ansettelsesforhold eller verv for selskapet i løpet av regnskapsåret, gitt opplysninger spesifisert i samsvar med fjerde til niende ledd?:","rskl § 7-31b 3. ledd",null,0,0,0,"",null,null,null,null,null,""]
[null,"Omfatter opplysningene om godtgjørelse eller honorarer minst følgende:","rskl § 7-31b 4. ledd",null,0,0,0,"",null,null,null,null,null,""]
[{"$f":"+A70+1","v":43},"den totale lønn vedkommende har mottatt eller opptjent for tjenester ytt i løpet av regnskapsåret, herunder eventuelle møtehonorarer vedtatt av generalforsamlingen, ",null,null,0,0,0,"",null,null,null,null,null,""]
[{"$f":"+A72+1","v":44},"godtgjørelse og fordeler vedkommende har mottatt fra foretak i samme konsern, ",null,null,0,0,0,"",null,null,null,null,null,""]
[{"$f":"+A73+1","v":45},"godtgjørelse i form av overskuddsdeling eller bonusutbetalinger og grunnen til at slike ytelser er gitt, ",null,null,0,0,0,"",null,null,null,null,null,""]
[{"$f":"+A74+1","v":46},"betydelig eller vesentlig tilleggsgodtgjørelse for spesielle tjenester utenfor de normale funksjoner for en leder, ",null,null,{"$f":"IF(I75<>\"\",1,0)","v":0},{"$f":"IF(J75<>\"\",1,0)","v":0},{"$f":"IF(K75<>\"\",1,0)","v":0},"",null,null,null,null,null,""]
[{"$f":"+A75+1","v":47},"betalt eller skyldig vederlag til hver tidligere administrerende direktør og styreleder i regnskapsåret i forbindelse med avslutning av vedkommendes ansettelsesforhold eller verv, og ",null,null,{"$f":"IF(I76<>\"\",1,0)","v":0},0,0,"",null,null,null,null,null,""]
[{"$f":"+A76+1","v":48},"beregnet verdi av totale fordeler i annet enn kontanter som anses som godtgjørelse.",null,null,0,0,0,"",null,null,null,null,null,""]
[null,"Aksjeverdibasert avlønning",null,null,null,null,null,null,null,null,null,null,null,{"$f":"IF(J78<>\"\",\"Du har satt X for at forholdet ikke er avklart. Gi en nærmere foklaring i kommentarfeltet.\",\"\")","v":""}]
[null,"Opplysningskrav for aksjeverdibaserte godtgjørelser som utelukkende gjelder utdeling av aksjer, egenkapitalbevis eller opsjoner, se spørsmål 51 til 54:","rskl § 7-31b 5. ledd ",null,null,null,null,null,null,null,null,null,null,""]
[null,"Omfatter opplysningene om aksjeverdibaserte godtgjørelser:","rskl § 7-31b 6. ledd",null,null,null,null,null,null,null,null,null,null,""]
[{"$f":"+A77+1","v":49},"antall opsjoner som er tildelt samt aksjer eller egenkapitalbevis som er gitt av foretaket i løpet av regnskapsåret, og vilkårene for å benytte disse, ",null,null,{"$f":"IF(I81<>\"\",1,0)","v":0},0,0,{"$f":"IF(SUM(E81:G81)>1,\"Velg kun et alt.\",\"\")","v":""},null,null,null,null,null,""]
[{"$f":"+A81+1","v":50},"antall opsjoner som er innløst i løpet av regnskapsåret. For hver av disse skal det opplyses om antall aksjer eller egenkapitalbevis som eventuelt er utdelt, innløsningskursen og eventuelle utbetalinger fra selskapet knyttet til innløsningen",null,null,0,0,0,"",null,null,null,null,null,""]
[{"$f":"+A82+1","v":51},"antall opsjoner som ikke er innløst ved regnskapsårets slutt, innløsningskursen, forfallstidspunktet og hovedbetingelsene for å utøve rettighetene, ",null,null,0,0,0,"",null,null,null,null,null,""]
[{"$f":"+A83+1","v":52},"endring i vilkår knyttet til eksisterende aksjeverdibaserte godtgjørelser i løpet av regnskapsåret.",null,null,0,0,0,"",null,null,null,null,null,""]
[null,"Opplysningskrav for alle andre aksjeverdibaserte godtgjørelser, se spørsmål 55 til 57:",null,null,0,null,null,null,null,null,null,null,null,""]
[{"$f":"+A84+1","v":53},"Omfatter opplysningene om aksjeverdibaserte godtgjørelser minst en beskrivelse av på hvilken måte utviklingen av verdien til aksjene eller egenkapitalbevisene i selskapet eller i andre selskaper i samme konsern, har påvirket beregningen av den godtgjørelsen som er utbetalt i regnskapsåret?","rskl § 7-31b 5. ledd",null,{"$f":"IF(I86<>\"\",1,0)","v":0},0,0,{"$f":"IF(SUM(E86:G86)>1,\"Velg kun et alt.\",\"\")","v":""},null,null,null,null,null,""]
[{"$f":"+A86+1","v":54},"For avtaler om aksjeverdibaserte godtgjørelser som ikke er avsluttet ved regnskapsårets slutt, er det opplyst om avtalens løpetid?","rskl § 7-31b 5. ledd",null,0,0,0,{"$f":"IF(SUM(E87:G87)>1,\"Velg kun et alt.\",\"\")","v":""},null,null,null,null,null,""]
[{"$f":"+A87+1","v":55},"Er det i tillegg gitt en beskrivelse av på hvilken måte det er avtalt at utviklingen i aksjenes verdi vil påvirke beregningen av fremtidige utbetalinger?",null,null,0,0,0,{"$f":"IF(SUM(E88:G88)>1,\"Velg kun et alt.\",\"\")","v":""},null,null,null,null,null,""]
[null,"Andre forhold vedrørende ytelser til ledende personer",null,null,null,null,null,null,null,null,null,null,null,""]
[{"$f":"+A88+1","v":56},"Er det for ytelsesbaserte pensjonsordninger minst opplyst om endringer i den enkeltes opptjente rettigheter etter ordningen i løpet av regnskapsåret?","rskl § 7-31b 7. ledd",null,{"$f":"IF(I90<>\"\",1,0)","v":0},{"$f":"IF(J90<>\"\",1,0)","v":0},{"$f":"IF(K90<>\"\",1,0)","v":0},"",null,null,null,null,null,""]
[{"$f":"+A90+1","v":57},"Er det for innskuddsbaserte pensjonsordninger minst gitt opplysninger om innskudd i ordningen som foretaket i løpet av regnskapsåret har betalt eller er blitt skyldig for hver person som er omfattet av første ledd?","rskl § 7-31b 7. ledd",null,{"$f":"IF(I91<>\"\",1,0)","v":0},0,0,"",null,null,null,null,null,""]
[{"$f":"+A91+1","v":58},"Er det opplyst om arten og omfanget av forpliktelser til å gi særskilt vederlag ved fratredelse, opphør eller endringer av ansettelsesforholdet eller vervet?","rskl § 7-31b 8. ledd",null,0,null,null,null,null,null,null,null,null,""]
[{"$f":"+A92+1","v":59},"Er det opplyst om lån, forskuddsbetalinger og sikkerhetsstillelser selskapet eller andre selskap i konsernet har gitt til personer som omfattet av første ledd, herunder hvilke vilkår som gjelder, avdragsplan, utestående beløp og rentesatsen?","rskl § 7-31b 9. ledd",null,0,0,0,"",null,null,null,null,null,""]
[{"$f":"+A93+1","v":60},"Når en eller flere opplysninger som nevnt i 9. ledd ikke gis fordi den regnskapspliktige ikke har hatt slike forpliktelser, er det opplyst særskilt om det?","rskl § 7-31b 12. ledd",null,0,null,null,null,null,null,null,null,null,""]
[{"$f":"+A94+1","v":61},"Tilleggskrav for ASA som skal utarbeide retningslinjer om fastsettelse av lønn og annen godtgjørelse til ledende personer etter allmennaksjeloven § 6-16 a: Er det opplyst om innholdet i retningslinjene?","rskl § 7-31b 10. ledd",null,0,0,0,"",null,null,null,null,null,""]
["Godtgjørelse til revisor",null,null,null,null,null,null,null,null,null,null,null,null,""]
[{"$f":"+A95+1","v":62},"Er det opplyst om godtgjørelse til revisor og hvordan denne er fordelt på;\n• Godtgjørelse for lovpålagt revisjon?","rskl § 7-31a",null,{"$f":"IF(I97<>\"\",1,0)","v":0},{"$f":"IF(J97<>\"\",1,0)","v":0},{"$f":"IF(K97<>\"\",1,0)","v":0},{"$f":"IF(SUM(E97:G97)>1,\"Velg kun et alt.\",\"\")","v":""},null,null,null,null,null,""]
[{"$f":"+A97+1","v":63},"• Godtgjørelse for andre attestasjonstjenester?",null,null,0,0,0,"",null,null,null,null,null,""]
[{"$f":"+A98+1","v":64},"• Godtgjørelse for skatterådgivning?",null,null,0,0,0,"",null,null,null,null,null,""]
[{"$f":"+A99+1","v":65},"• Godtgjørelse for andre tjenester utenfor revisjon (skal spesifiseres på vesentlig forskjellige tjenester)?",null,null,0,0,0,"",null,null,null,null,null,""]
[{"$f":"+A100+1","v":66},"Er det opplyst om eventuelt honorar ført direkte mot egenkapitalen i forbindelse med egenkapitaltransaksjoner?",null,null,0,0,0,"",null,null,null,null,null,""]
[{"$f":"+A101+1","v":67},"Inneholder opplysningene også godtgjørelse til foretak som revisor har et særskilt samarbeid med?",null,null,0,0,0,"",null,null,null,null,null,""]
["Lån og sikkerhetsstillelse til ledende ansatte, tillitsvalgte og aksjeeiere mv.",null,null,null,null,null,null,null,null,null,null,null,null,""]
[{"$f":"+A102+1","v":68},"Er lån til eller sikkerhetsstillelse til fordel for daglig leder og/eller leder for styret spesifisert?  ","rskl § 7-32",null,{"$f":"IF(I104<>\"\",1,0)","v":0},{"$f":"IF(J104<>\"\",1,0)","v":0},{"$f":"IF(K104<>\"\",1,0)","v":0},{"$f":"IF(SUM(E104:G104)>1,\"Velg kun et alt.\",\"\")","v":""},null,null,null,null,null,""]
[{"$f":"+A104+1","v":69},"Er det for hvert lån opplyst om hvilke vilkår som gjelder, herunder rentesatsen og avdragsplanen?",null,null,0,0,null,null,null,null,null,null,null,""]
[70,"Er det opplyst om samlede lån til og samlet sikkerhetsstillelse til fordel for nedennevnte og deres nærstående\n• ansatte (unntak for nærstående)?",null,null,0,0,0,"",null,null,null,null,null,""]
[71,"• aksjeeiere?",null,null,0,0,0,"",null,null,null,null,null,""]
[72,"• styremedlemmer?",null,null,0,0,0,"",null,null,null,null,null,""]
[73,"• medlemmer av bedriftsforsamlingen?",null,null,0,0,0,"",null,null,null,null,null,""]
[74,"Er det opplyst om hvilke vilkår som gjelder for slike lån eller sikkerhetsstillelser?",null,null,0,0,0,"",null,null,null,null,null,""]
[null,"Nærstående er definert som:\n1. ektefelle og en person som vedkommende bor sammen med i ekteskapslignende forhold\n2. slektninger i rett oppstigende eller nedstigende linje og søsken \n3. slektninger i rett oppstigende eller nedstigende linje, og søsken til en person som nevnt i nr. 1,\n4. ektefelle til, og en person som bor sammen i ekteskapslignende forhold med, noen som er nevnt i nr. 2,\n5. foretak der vedkommende selv eller noen som er nevnt i nr. 1 til 4 har slik bestemmende innflytelse som nevnt i § 1-3 annet ledd.",null,null,null,null,null,null,null,null,null,null,null,""]
[{"$f":"+A110+1","v":75},"Er lån eller sikkerhetsstillelser som utgjør mer enn 5 prosent av egenkapitalen spesifisert?",null,null,{"$f":"IF(I112<>\"\",1,0)","v":0},{"$f":"IF(J112<>\"\",1,0)","v":0},{"$f":"IF(K112<>\"\",1,0)","v":0},{"$f":"IF(SUM(E112:G112)>1,\"Velg kun et alt.\",\"\")","v":""},null,null,null,null,null,""]
["Sammenligningstall",null,null,null,null,{"$f":"IF(J113<>\"\",1,0)","v":0},null,null,null,null,null,null,null,""]
[null,"Ihht den norske oversettelsen av IAS 1.38 skal det gis sammenligningsinformasjon for foregående regnskapsperiode for alle beløp som presenteres i finansregnskapet. Vær oppmerksom på at det engelske originalspråket bruker ordet \"amount\", dette er en videre betegnelse enn den norske oversettelsen \"beløp\".",null,null,null,0,null,null,null,null,null,null,null,""]
[{"$f":"+A112+1","v":76},"Er det gitt tilstrekkelig sammenligningsinformasjon ihht IAS 1.38?",null,null,{"$f":"IF(I115<>\"\",1,0)","v":0},0,{"$f":"IF(K115<>\"\",1,0)","v":0},{"$f":"IF(SUM(E115:G115)>1,\"Velg kun et alt.\",\"\")","v":""},null,null,null,null,null,""]
["Bransjer med særforskrifter til regnskapsloven",null,null,null,null,0]
[null,"Vær oppmerksom på at følgende bransjer har egne notekrav i særforskrifter til regnskaploven:",null,null,null,0]
[null,"• Borettslag",null,null,null,0]
[null,"• Pensjonsforetak",null,null,null,{"$f":"IF(J119<>\"\",1,0)","v":0}]
[null,"• Eiendomsmeglere",null,null,null,0]
[null,"• Verdipapirforetak",null,null,null,0]
[null,"• Inkassovirksomhet",null,null,null,0]
[null,"• Verdipapirfond",null,null,null,0]
[null,"• Forsikringsselskaper",null,null,null,0]
[null,"• Banker og finansieringsforetak",null,null,null,0]

{"sheet":"Ikke besvart","index":1,"n_rows":77,"n_cols":9,"rows_kept":77,"cut":false,"hidden":false,"merged":[]}
[null,null,null,null,{"$f":"COUNTIF(E2:E77,\"=0\")","v":76},"Ikke besvart",{"$f":"'RL krav full IFRS'!B2","v":0},{"$f":"'RL krav full IFRS'!B3","v":2024},"Kommentarer"]
[{"$f":"'RL krav full IFRS'!A12","v":1},{"$f":"IF('RL krav full IFRS'!I12<>\"\",1,0)","v":0},{"$f":"IF('RL krav full IFRS'!J12<>\"\",1,0)","v":0},{"$f":"IF('RL krav full IFRS'!K12<>\"\",1,0)","v":0},{"$f":"SUM(B2:D2)","v":0},{"$f":"IF($E2=0,'RL krav full IFRS'!A12,\"\")","v":1},{"$f":"IF($E2=0,'RL krav full IFRS'!B12,\"\")","v":"Ved investering i datterselskap, er det opplyst om;\n• Foretaksnavn?"},null,{"$f":"IF($E2=0,'RL krav full IFRS'!L12,\"\")","v":0}]
[{"$f":"'RL krav full IFRS'!A13","v":2},{"$f":"IF('RL krav full IFRS'!I13<>\"\",1,0)","v":0},{"$f":"IF('RL krav full IFRS'!J13<>\"\",1,0)","v":0},{"$f":"IF('RL krav full IFRS'!K13<>\"\",1,0)","v":0},0,{"$f":"IF($E3=0,'RL krav full IFRS'!A13,\"\")","v":2},{"$f":"IF($E3=0,'RL krav full IFRS'!B13,\"\")","v":"• Forretningskontor?"},null,{"$f":"IF($E3=0,'RL krav full IFRS'!L13,\"\")","v":0}]
[{"$f":"'RL krav full IFRS'!A14","v":3},{"$f":"IF('RL krav full IFRS'!I14<>\"\",1,0)","v":0},{"$f":"IF('RL krav full IFRS'!J14<>\"\",1,0)","v":0},{"$f":"IF('RL krav full IFRS'!K14<>\"\",1,0)","v":0},0,{"$f":"IF($E4=0,'RL krav full IFRS'!A14,\"\")","v":3},{"$f":"IF($E4=0,'RL krav full IFRS'!B14,\"\")","v":"• Eierandel og stemmeandel?"},null,{"$f":"IF($E4=0,'RL krav full IFRS'!L14,\"\")","v":0}]
[{"$f":"'RL krav full IFRS'!A15","v":4},{"$f":"IF('RL krav full IFRS'!I15<>\"\",1,0)","v":0},{"$f":"IF('RL krav full IFRS'!J15<>\"\",1,0)","v":0},{"$f":"IF('RL krav full IFRS'!K15<>\"\",1,0)","v":0},0,{"$f":"IF($E5=0,'RL krav full IFRS'!A15,\"\")","v":4},{"$f":"IF($E5=0,'RL krav full IFRS'!B15,\"\")","v":"Datterselskap som ikke konsolideres:\nFor datterselskap som regnskapsføres etter kostmetoden og som ikke konsolideres, er det i tillegg gitt opplysning om egenkapital og resultat ifølge siste årsregnskap?"},null,{"$f":"IF($E5=0,'RL krav full IFRS'!L15,\"\")","v":0}]
[{"$f":"'RL krav full IFRS'!A17","v":5},{"$f":"IF('RL krav full IFRS'!I17<>\"\",1,0)","v":0},{"$f":"IF('RL krav full IFRS'!J17<>\"\",1,0)","v":0},{"$f":"IF('RL krav full IFRS'!K17<>\"\",1,0)","v":0},0,{"$f":"IF($E6=0,'RL krav full IFRS'!A17,\"\")","v":5},{"$f":"IF($E6=0,'RL krav full IFRS'!B17,\"\")","v":"Regnskapspliktige som selv er datterselskap, er det opplyst om:\n• firma og forretningskontor for morselskap som utarbeider konsernregnskap der den regnskapspliktige inngår i konsolideringen?"},null,{"$f":"IF($E6=0,'RL krav full IFRS'!L17,\"\")","v":0}]
[{"$f":"'RL krav full IFRS'!A18","v":6},{"$f":"IF('RL krav full IFRS'!I18<>\"\",1,0)","v":0},{"$f":"IF('RL krav full IFRS'!J18<>\"\",1,0)","v":0},{"$f":"IF('RL krav full IFRS'!K18<>\"\",1,0)","v":0},0,{"$f":"IF($E7=0,'RL krav full IFRS'!A18,\"\")","v":6},{"$f":"IF($E7=0,'RL krav full IFRS'!B18,\"\")","v":"• hvor en kan få utlevert konsernregnskapene?"},null,{"$f":"IF($E7=0,'RL krav full IFRS'!L18,\"\")","v":0}]
[{"$f":"'RL krav full IFRS'!A20","v":7},{"$f":"IF('RL krav full IFRS'!I20<>\"\",1,0)","v":0},{"$f":"IF('RL krav full IFRS'!J20<>\"\",1,0)","v":0},{"$f":"IF('RL krav full IFRS'!K20<>\"\",1,0)","v":0},0,{"$f":"IF($E8=0,'RL krav full IFRS'!A20,\"\")","v":7},{"$f":"IF($E8=0,'RL krav full IFRS'!B20,\"\")","v":"For hver enkelt investering, er det opplyst om\n• Navn og forretningskontor?"},null,{"$f":"IF($E8=0,'RL krav full IFRS'!L20,\"\")","v":0}]
[{"$f":"'RL krav full IFRS'!A21","v":8},{"$f":"IF('RL krav full IFRS'!I21<>\"\",1,0)","v":0},{"$f":"IF('RL krav full IFRS'!J21<>\"\",1,0)","v":0},{"$f":"IF('RL krav full IFRS'!K21<>\"\",1,0)","v":0},0,{"$f":"IF($E9=0,'RL krav full IFRS'!A21,\"\")","v":8},{"$f":"IF($E9=0,'RL krav full IFRS'!B21,\"\")","v":"• Eierandel og stemmeandel?"},null,{"$f":"IF($E9=0,'RL krav full IFRS'!L21,\"\")","v":0}]
[{"$f":"'RL krav full IFRS'!A22","v":9},{"$f":"IF('RL krav full IFRS'!I22<>\"\",1,0)","v":0},{"$f":"IF('RL krav full IFRS'!J22<>\"\",1,0)","v":0},{"$f":"IF('RL krav full IFRS'!K22<>\"\",1,0)","v":0},0,{"$f":"IF($E10=0,'RL krav full IFRS'!A22,\"\")","v":9},{"$f":"IF($E10=0,'RL krav full IFRS'!B22,\"\")","v":"TS regnskapsført etter kostmetoden:\nFor tilknyttede selskaper som regnskapsføres etter kostmetoden, er det i tillegg gitt opplysning om egenkapital og resultat ifølge siste årsregnskap?"},null,{"$f":"IF($E10=0,'RL krav full IFRS'!L22,\"\")","v":0}]
[{"$f":"'RL krav full IFRS'!A24","v":10},{"$f":"IF('RL krav full IFRS'!I24<>\"\",1,0)","v":0},{"$f":"IF('RL krav full IFRS'!J24<>\"\",1,0)","v":0},{"$f":"IF('RL krav full IFRS'!K24<>\"\",1,0)","v":0},0,{"$f":"IF($E11=0,'RL krav full IFRS'!A24,\"\")","v":10},{"$f":"IF($E11=0,'RL krav full IFRS'!B24,\"\")","v":"Investeringer i aksjer/andeler hvor man eier mer enn 10 % eller hvor investeringen utgjør mer enn 50 % av eierselskapets egenkapital:\nEr investeringene spesifisert etter selskap, med mindre investeringen omfattes av RL § 7-15 (DS, TS, FKV) og RL § 7-16 (Egenkapitalmetoden), dvs. TS/FKV som regnskapsføres etter egenkapitalmetoden?"},null,{"$f":"IF($E11=0,'RL krav full IFRS'!L24,\"\")","v":0}]
[{"$f":"'RL krav full IFRS'!A25","v":11},{"$f":"IF('RL krav full IFRS'!I25<>\"\",1,0)","v":0},{"$f":"IF('RL krav full IFRS'!J25<>\"\",1,0)","v":0},{"$f":"IF('RL krav full IFRS'!K25<>\"\",1,0)","v":0},0,{"$f":"IF($E12=0,'RL krav full IFRS'!A25,\"\")","v":11},{"$f":"IF($E12=0,'RL krav full IFRS'!B25,\"\")","v":"For hvert selskap, er det opplyst om;\n• Balanseført verdi?"},null,{"$f":"IF($E12=0,'RL krav full IFRS'!L25,\"\")","v":0}]
[{"$f":"'RL krav full IFRS'!A26","v":12},{"$f":"IF('RL krav full IFRS'!I26<>\"\",1,0)","v":0},{"$f":"IF('RL krav full IFRS'!J26<>\"\",1,0)","v":0},{"$f":"IF('RL krav full IFRS'!K26<>\"\",1,0)","v":0},0,{"$f":"IF($E13=0,'RL krav full IFRS'!A26,\"\")","v":12},{"$f":"IF($E13=0,'RL krav full IFRS'!B26,\"\")","v":"• Eventuell markedsverdi?"},null,{"$f":"IF($E13=0,'RL krav full IFRS'!L26,\"\")","v":0}]
[{"$f":"'RL krav full IFRS'!A27","v":13},{"$f":"IF('RL krav full IFRS'!I27<>\"\",1,0)","v":0},{"$f":"IF('RL krav full IFRS'!J27<>\"\",1,0)","v":0},{"$f":"IF('RL krav full IFRS'!K27<>\"\",1,0)","v":0},0,{"$f":"IF($E14=0,'RL krav full IFRS'!A27,\"\")","v":13},{"$f":"IF($E14=0,'RL krav full IFRS'!B27,\"\")","v":"• Eierandel?"},null,{"$f":"IF($E14=0,'RL krav full IFRS'!L27,\"\")","v":0}]
[{"$f":"'RL krav full IFRS'!A29","v":14},{"$f":"IF('RL krav full IFRS'!I29<>\"\",1,0)","v":0},{"$f":"IF('RL krav full IFRS'!J29<>\"\",1,0)","v":0},{"$f":"IF('RL krav full IFRS'!K29<>\"\",1,0)","v":0},0,{"$f":"IF($E15=0,'RL krav full IFRS'!A29,\"\")","v":14},{"$f":"IF($E15=0,'RL krav full IFRS'!B29,\"\")","v":"Aksjekapital og aksjonærer\nEr det opplyst om:\n• Aksjekapitalens størrelse?"},null,{"$f":"IF($E15=0,'RL krav full IFRS'!L29,\"\")","v":0}]
[{"$f":"'RL krav full IFRS'!A30","v":15},{"$f":"IF('RL krav full IFRS'!I30<>\"\",1,0)","v":0},{"$f":"IF('RL krav full IFRS'!J30<>\"\",1,0)","v":0},{"$f":"IF('RL krav full IFRS'!K30<>\"\",1,0)","v":0},0,{"$f":"IF($E16=0,'RL krav full IFRS'!A30,\"\")","v":15},{"$f":"IF($E16=0,'RL krav full IFRS'!B30,\"\")","v":"• Aksjenes pålydende (fordelt på hver aksjeklasse hvis det er flere aksjeklasser)?"},null,{"$f":"IF($E16=0,'RL krav full IFRS'!L30,\"\")","v":0}]
[{"$f":"'RL krav full IFRS'!A31","v":16},{"$f":"IF('RL krav full IFRS'!I31<>\"\",1,0)","v":0},{"$f":"IF('RL krav full IFRS'!J31<>\"\",1,0)","v":0},{"$f":"IF('RL krav full IFRS'!K31<>\"\",1,0)","v":0},0,{"$f":"IF($E17=0,'RL krav full IFRS'!A31,\"\")","v":16},{"$f":"IF($E17=0,'RL krav full IFRS'!B31,\"\")","v":"• Vedtektsbestemmelser om stemmerett hvis ikke alle aksjene har samme rett?"},null,{"$f":"IF($E17=0,'RL krav full IFRS'!L31,\"\")","v":0}]
[{"$f":"'RL krav full IFRS'!A32","v":17},{"$f":"IF('RL krav full IFRS'!I32<>\"\",1,0)","v":0},{"$f":"IF('RL krav full IFRS'!J32<>\"\",1,0)","v":0},{"$f":"IF('RL krav full IFRS'!K32<>\"\",1,0)","v":0},0,{"$f":"IF($E18=0,'RL krav full IFRS'!A32,\"\")","v":17},{"$f":"IF($E18=0,'RL krav full IFRS'!B32,\"\")","v":"• Alle rettigheter som kan medføre at det blir utstedt nye aksjer med angivelse av hovedtrekkene i vilkår som gjelder for retten?"},null,{"$f":"IF($E18=0,'RL krav full IFRS'!L32,\"\")","v":0}]
[{"$f":"'RL krav full IFRS'!A33","v":18},{"$f":"IF('RL krav full IFRS'!I33<>\"\",1,0)","v":0},{"$f":"IF('RL krav full IFRS'!J33<>\"\",1,0)","v":0},{"$f":"IF('RL krav full IFRS'!K33<>\"\",1,0)","v":0},0,{"$f":"IF($E19=0,'RL krav full IFRS'!A33,\"\")","v":18},{"$f":"IF($E19=0,'RL krav full IFRS'!B33,\"\")","v":"• Selskapets 20 største aksjeeiere og deres eierandeler (kan utelate aksjeeiere som eier mindre enn 1 %)?"},null,{"$f":"IF($E19=0,'RL krav full IFRS'!L33,\"\")","v":0}]
[{"$f":"'RL krav full IFRS'!A34","v":19},{"$f":"IF('RL krav full IFRS'!I34<>\"\",1,0)","v":0},{"$f":"IF('RL krav full IFRS'!J34<>\"\",1,0)","v":0},{"$f":"IF('RL krav full IFRS'!K34<>\"\",1,0)","v":0},0,{"$f":"IF($E20=0,'RL krav full IFRS'!A34,\"\")","v":19},{"$f":"IF($E20=0,'RL krav full IFRS'!B34,\"\")","v":"• Aksjer/andeler og rettigheter til aksjer/andeler som eies av daglig leder og medlemmer av styret og bedriftsforsamling?"},null,{"$f":"IF($E20=0,'RL krav full IFRS'!L34,\"\")","v":0}]
[{"$f":"'RL krav full IFRS'!A35","v":20},{"$f":"IF('RL krav full IFRS'!I35<>\"\",1,0)","v":0},{"$f":"IF('RL krav full IFRS'!J35<>\"\",1,0)","v":0},{"$f":"IF('RL krav full IFRS'!K35<>\"\",1,0)","v":0},0,{"$f":"IF($E21=0,'RL krav full IFRS'!A35,\"\")","v":20},{"$f":"IF($E21=0,'RL krav full IFRS'!B35,\"\")","v":"For foretak av allmenn interesse, er det opplyst om aksjer/andeler og rettigheter til aksjer/andeler som eies av hver enkelt ledende ansatte og deres personlig nærstående samt hvert enkelt medlem av styret og deres personlig nærstående?"},null,{"$f":"IF($E21=0,'RL krav full IFRS'!L35,\"\")","v":0}]
[{"$f":"'RL krav full IFRS'!A37","v":21},{"$f":"IF('RL krav full IFRS'!I37<>\"\",1,0)","v":0},{"$f":"IF('RL krav full IFRS'!J37<>\"\",1,0)","v":0},{"$f":"IF('RL krav full IFRS'!K37<>\"\",1,0)","v":0},0,{"$f":"IF($E22=0,'RL krav full IFRS'!A37,\"\")","v":21},{"$f":"IF($E22=0,'RL krav full IFRS'!B37,\"\")","v":"For regnskapspliktige som er utstedere med Norge som hjemstat etter vphl § 5-4, er det opplyst om vesentlige indirekte aksjebesittelser i selskapet?"},null,{"$f":"IF($E22=0,'RL krav full IFRS'!L37,\"\")","v":0}]
[{"$f":"'RL krav full IFRS'!A40","v":22},{"$f":"IF('RL krav full IFRS'!I40<>\"\",1,0)","v":0},{"$f":"IF('RL krav full IFRS'!J40<>\"\",1,0)","v":0},{"$f":"IF('RL krav full IFRS'!K40<>\"\",1,0)","v":0},0,{"$f":"IF($E23=0,'RL krav full IFRS'!A40,\"\")","v":22},{"$f":"IF($E23=0,'RL krav full IFRS'!B40,\"\")","v":"Dersom egne aksjer ikke vises på egen linje under selskapskapitalen i balansen eller i oppstilling av endringer i egenkapitalen, er spesifikasjon gitt i note? "},null,{"$f":"IF($E23=0,'RL krav full IFRS'!L40,\"\")","v":0}]
[{"$f":"'RL krav full IFRS'!A41","v":23},{"$f":"IF('RL krav full IFRS'!I41<>\"\",1,0)","v":0},{"$f":"IF('RL krav full IFRS'!J41<>\"\",1,0)","v":0},{"$f":"IF('RL krav full IFRS'!K41<>\"\",1,0)","v":0},0,{"$f":"IF($E24=0,'RL krav full IFRS'!A41,\"\")","v":23},{"$f":"IF($E24=0,'RL krav full IFRS'!B41,\"\")","v":"Dersom selskapet har en beholdning av egne aksjer etter aksjeloven kapittel 9, er det opplyst om antallet, aksjenes pålydende verdi og den andel aksjene utgjør av aksjekapitalen?"},null,{"$f":"IF($E24=0,'RL krav full IFRS'!L41,\"\")","v":0}]
[{"$f":"'RL krav full IFRS'!A42","v":24},{"$f":"IF('RL krav full IFRS'!I42<>\"\",1,0)","v":0},{"$f":"IF('RL krav full IFRS'!J42<>\"\",1,0)","v":0},{"$f":"IF('RL krav full IFRS'!K42<>\"\",1,0)","v":0},0,{"$f":"IF($E25=0,'RL krav full IFRS'!A42,\"\")","v":24},{"$f":"IF($E25=0,'RL krav full IFRS'!B42,\"\")","v":"Dersom det har vært endringer i beholdning av egne aksjer og datterselskapenes beholdning av aksjer i morselskapet i løpet av regnskapsåret, er det minst opplyst om følgende:\n• bakgrunn for erverv som har funnet sted\n• antall aksjer som er ervervet, vederlag for disse og den andel de utgjør av aksjekapitalen\n• antall aksjer som er avhendet, vederlaget for disse og den andel de utgjør av aksjekapitalen?"},null,{"$f":"IF($E25=0,'RL krav full IFRS'!L42,\"\")","v":0}]
[{"$f":"'RL krav full IFRS'!A44","v":25},{"$f":"IF('RL krav full IFRS'!I44<>\"\",1,0)","v":0},{"$f":"IF('RL krav full IFRS'!J44<>\"\",1,0)","v":0},{"$f":"IF('RL krav full IFRS'!K44<>\"\",1,0)","v":0},0,{"$f":"IF($E26=0,'RL krav full IFRS'!A44,\"\")","v":25},{"$f":"IF($E26=0,'RL krav full IFRS'!B44,\"\")","v":"Er det opplyst om antall årsverk som har vært sysselsatt i regnskapsåret?"},null,{"$f":"IF($E26=0,'RL krav full IFRS'!L44,\"\")","v":0}]
[{"$f":"'RL krav full IFRS'!A45","v":26},{"$f":"IF('RL krav full IFRS'!I45<>\"\",1,0)","v":0},{"$f":"IF('RL krav full IFRS'!J45<>\"\",1,0)","v":0},{"$f":"IF('RL krav full IFRS'!K45<>\"\",1,0)","v":0},0,{"$f":"IF($E27=0,'RL krav full IFRS'!A45,\"\")","v":26},{"$f":"IF($E27=0,'RL krav full IFRS'!B45,\"\")","v":"Dersom selskapet ikke har noen ansatte, er dette opplyst?"},null,{"$f":"IF($E27=0,'RL krav full IFRS'!L45,\"\")","v":0}]
[{"$f":"'RL krav full IFRS'!A47","v":27},{"$f":"IF('RL krav full IFRS'!I47<>\"\",1,0)","v":0},{"$f":"IF('RL krav full IFRS'!J47<>\"\",1,0)","v":0},{"$f":"IF('RL krav full IFRS'!K47<>\"\",1,0)","v":0},0,{"$f":"IF($E28=0,'RL krav full IFRS'!A47,\"\")","v":27},{"$f":"IF($E28=0,'RL krav full IFRS'!B47,\"\")","v":"Er det opplyst om foretaket er pliktig til å ha tjenestepensjonsordning etter lov om obligatorisk tjenestepensjon?"},null,{"$f":"IF($E28=0,'RL krav full IFRS'!L47,\"\")","v":0}]
[{"$f":"'RL krav full IFRS'!A48","v":28},{"$f":"IF('RL krav full IFRS'!I48<>\"\",1,0)","v":0},{"$f":"IF('RL krav full IFRS'!J48<>\"\",1,0)","v":0},{"$f":"IF('RL krav full IFRS'!K48<>\"\",1,0)","v":0},0,{"$f":"IF($E29=0,'RL krav full IFRS'!A48,\"\")","v":28},{"$f":"IF($E29=0,'RL krav full IFRS'!B48,\"\")","v":"Er det opplyst om foretaket har pensjonsordning som oppfyller kravene ?"},null,{"$f":"IF($E29=0,'RL krav full IFRS'!L48,\"\")","v":0}]
[{"$f":"'RL krav full IFRS'!A50","v":29},{"$f":"IF('RL krav full IFRS'!I50<>\"\",1,0)","v":0},{"$f":"IF('RL krav full IFRS'!J50<>\"\",1,0)","v":0},{"$f":"IF('RL krav full IFRS'!K50<>\"\",1,0)","v":0},0,{"$f":"IF($E30=0,'RL krav full IFRS'!A50,\"\")","v":29},{"$f":"IF($E30=0,'RL krav full IFRS'!B50,\"\")","v":"Er det opplyst om samlede utgifter til lønn, pensjonsforpliktelser og annen godtgjørelse til:\n• daglig leder\n• styremedlemmer \n• medlemmer i bedriftsforsamlingen "},null,{"$f":"IF($E30=0,'RL krav full IFRS'!L50,\"\")","v":0}]
[{"$f":"'RL krav full IFRS'!A51","v":30},{"$f":"IF('RL krav full IFRS'!I51<>\"\",1,0)","v":0},{"$f":"IF('RL krav full IFRS'!J51<>\"\",1,0)","v":0},{"$f":"IF('RL krav full IFRS'!K51<>\"\",1,0)","v":0},0,{"$f":"IF($E31=0,'RL krav full IFRS'!A51,\"\")","v":30},{"$f":"IF($E31=0,'RL krav full IFRS'!B51,\"\")","v":"Er det opplyst følgende om ytelser til daglig leder og leder av styret;\n• Arten og omfanget av forpliktelser til å gi særskilt vederlag ved opphør eller endring av ansettelsesforhold / verv\n• Avtaler om bonuser, overskuddsdeling og lignende fordeler"},null,{"$f":"IF($E31=0,'RL krav full IFRS'!L51,\"\")","v":0}]
[{"$f":"'RL krav full IFRS'!A52","v":31},{"$f":"IF('RL krav full IFRS'!I52<>\"\",1,0)","v":0},{"$f":"IF('RL krav full IFRS'!J52<>\"\",1,0)","v":0},{"$f":"IF('RL krav full IFRS'!K52<>\"\",1,0)","v":0},0,{"$f":"IF($E32=0,'RL krav full IFRS'!A52,\"\")","v":31},{"$f":"IF($E32=0,'RL krav full IFRS'!B52,\"\")","v":"Dersom selskapet ikke har hatt slike utgifter eller forpliktelser som beskrevet i de to foregående punkt, er det opplyst særskilt om det?"},null,{"$f":"IF($E32=0,'RL krav full IFRS'!L52,\"\")","v":0}]
[{"$f":"'RL krav full IFRS'!A53","v":32},{"$f":"IF('RL krav full IFRS'!I53<>\"\",1,0)","v":0},{"$f":"IF('RL krav full IFRS'!J53<>\"\",1,0)","v":0},{"$f":"IF('RL krav full IFRS'!K53<>\"\",1,0)","v":0},0,{"$f":"IF($E33=0,'RL krav full IFRS'!A53,\"\")","v":32},{"$f":"IF($E33=0,'RL krav full IFRS'!B53,\"\")","v":"Er det opplyst om forpliktelser knyttet til aksjeverdibaserte godtgjørelser til fordel for ansatte og tillitsvalgte?"},null,{"$f":"IF($E33=0,'RL krav full IFRS'!L53,\"\")","v":0}]
[{"$f":"'RL krav full IFRS'!A55","v":33},{"$f":"IF('RL krav full IFRS'!I55<>\"\",1,0)","v":0},{"$f":"IF('RL krav full IFRS'!J55<>\"\",1,0)","v":0},{"$f":"IF('RL krav full IFRS'!K55<>\"\",1,0)","v":0},{"$f":"SUM(B34:D34)","v":0},{"$f":"IF($E34=0,'RL krav full IFRS'!A55,\"\")","v":33},{"$f":"IF($E34=0,'RL krav full IFRS'!B55,\"\")","v":"Er det opplyst om arten og omfanget av de enkelte avtaler om aksjeverdibaserte godtgjørelser til fordel for:\n• de enkelte ledende ansatte\n• de enkelte medlemmer av styre\n• de enkelte medlemmer av kontrollkomite\n• de enkelte medlemmer av andre valgte selskapsorganer med unntak av bedriftsforsamlingen"},null,{"$f":"IF($E34=0,'RL krav full IFRS'!L55,\"\")","v":0}]
[{"$f":"'RL krav full IFRS'!A58","v":34},{"$f":"IF('RL krav full IFRS'!I58<>\"\",1,0)","v":0},{"$f":"IF('RL krav full IFRS'!J58<>\"\",1,0)","v":0},{"$f":"IF('RL krav full IFRS'!K58<>\"\",1,0)","v":0},0,{"$f":"IF($E35=0,'RL krav full IFRS'!A58,\"\")","v":34},{"$f":"IF($E35=0,'RL krav full IFRS'!B58,\"\")","v":"• antall opsjoner som er tildelt, samt aksjer eller egenkapitalbevis som er gitt av foretaket i løpet av regnskapsåret, og vilkårene for disse,"},null,{"$f":"IF($E35=0,'RL krav full IFRS'!L58,\"\")","v":0}]
[{"$f":"'RL krav full IFRS'!A59","v":35},{"$f":"IF('RL krav full IFRS'!I59<>\"\",1,0)","v":0},{"$f":"IF('RL krav full IFRS'!J59<>\"\",1,0)","v":0},{"$f":"IF('RL krav full IFRS'!K59<>\"\",1,0)","v":0},0,{"$f":"IF($E36=0,'RL krav full IFRS'!A59,\"\")","v":35},{"$f":"IF($E36=0,'RL krav full IFRS'!B59,\"\")","v":"• antall opsjoner som er innløst i løpet av regnskapsåret, og for hver av disse antall aksjer eller egenkapitalbevis som eventuelt er utdelt, innløsningskursen og eventuelle utbetalinger fra selskapet knyttet til innløsningen"},null,{"$f":"IF($E36=0,'RL krav full IFRS'!L59,\"\")","v":0}]
[{"$f":"'RL krav full IFRS'!A60","v":36},{"$f":"IF('RL krav full IFRS'!I60<>\"\",1,0)","v":0},{"$f":"IF('RL krav full IFRS'!J60<>\"\",1,0)","v":0},{"$f":"IF('RL krav full IFRS'!K60<>\"\",1,0)","v":0},0,{"$f":"IF($E37=0,'RL krav full IFRS'!A60,\"\")","v":36},{"$f":"IF($E37=0,'RL krav full IFRS'!B60,\"\")","v":"• antall opsjoner som ikke er innløst ved regnskapsårets slutt, innløsningskursen, forfallstidspunktet og hovedbetingelsene for å utøve rettighetene"},null,{"$f":"IF($E37=0,'RL krav full IFRS'!L60,\"\")","v":0}]
[{"$f":"'RL krav full IFRS'!A61","v":37},{"$f":"IF('RL krav full IFRS'!I61<>\"\",1,0)","v":0},{"$f":"IF('RL krav full IFRS'!J61<>\"\",1,0)","v":0},{"$f":"IF('RL krav full IFRS'!K61<>\"\",1,0)","v":0},0,{"$f":"IF($E38=0,'RL krav full IFRS'!A61,\"\")","v":37},{"$f":"IF($E38=0,'RL krav full IFRS'!B61,\"\")","v":"• endringer i vilkår knyttet til eksisterende aksjeverdibaserte godtgjørelser i løpet av regnskapsåret."},null,{"$f":"IF($E38=0,'RL krav full IFRS'!L61,\"\")","v":0}]
[{"$f":"'RL krav full IFRS'!A63","v":38},{"$f":"IF('RL krav full IFRS'!I63<>\"\",1,0)","v":0},{"$f":"IF('RL krav full IFRS'!J63<>\"\",1,0)","v":0},{"$f":"IF('RL krav full IFRS'!K63<>\"\",1,0)","v":0},0,{"$f":"IF($E39=0,'RL krav full IFRS'!A63,\"\")","v":38},{"$f":"IF($E39=0,'RL krav full IFRS'!B63,\"\")","v":"Omfatter opplysningene i spørsmål 35 minst en beskrivelse av på hvilken måte utviklingen av verdien til aksjene eller egenkapitalbevisene i selskapet eller i andre selskaper i samme konsern, har påvirket beregningen av den godtgjørelsen som er utbetalt i regnskapsåret?"},null,{"$f":"IF($E39=0,'RL krav full IFRS'!L63,\"\")","v":0}]
[{"$f":"'RL krav full IFRS'!A64","v":39},{"$f":"IF('RL krav full IFRS'!I64<>\"\",1,0)","v":0},{"$f":"IF('RL krav full IFRS'!J64<>\"\",1,0)","v":0},{"$f":"IF('RL krav full IFRS'!K64<>\"\",1,0)","v":0},0,{"$f":"IF($E40=0,'RL krav full IFRS'!A64,\"\")","v":39},{"$f":"IF($E40=0,'RL krav full IFRS'!B64,\"\")","v":"For avtaler om aksjeverdibaserte godtgjøelser som ikke er avsluttet ved regnskapsårets slutt, er det opplyst om\n• avtalens løpetid, og \n• en beskrivelse av på hvilken måte det er avtalt at utviklingen i aksjenes verdi vil påvirke beregningen av fremtidige utbetalinger?"},null,{"$f":"IF($E40=0,'RL krav full IFRS'!L64,\"\")","v":0}]
[{"$f":"'RL krav full IFRS'!A68","v":40},{"$f":"IF('RL krav full IFRS'!I68<>\"\",1,0)","v":0},{"$f":"IF('RL krav full IFRS'!J68<>\"\",1,0)","v":0},{"$f":"IF('RL krav full IFRS'!K68<>\"\",1,0)","v":0},0,{"$f":"IF($E41=0,'RL krav full IFRS'!A68,\"\")","v":40},{"$f":"IF($E41=0,'RL krav full IFRS'!B68,\"\")","v":"Har foretaket opplyst om samlet godtgjørelse og andre fordeler som er gitt til de enkelte ledende ansatte og de enkelte medlemmene av henholdsvis styret, kontrollkomiteen og andre valgte selskapsorganer med unntak av bedriftsforsamlingen?"},null,{"$f":"IF($E41=0,'RL krav full IFRS'!L68,\"\")","v":0}]
[{"$f":"'RL krav full IFRS'!A69","v":41},{"$f":"IF('RL krav full IFRS'!I69<>\"\",1,0)","v":0},{"$f":"IF('RL krav full IFRS'!J69<>\"\",1,0)","v":0},{"$f":"IF('RL krav full IFRS'!K69<>\"\",1,0)","v":0},0,{"$f":"IF($E42=0,'RL krav full IFRS'!A69,\"\")","v":41},{"$f":"IF($E42=0,'RL krav full IFRS'!B69,\"\")","v":"Er det opplyst om forpliktelser knyttet til aksjeverdibaserte godtgjørelser til fordel for ansatte og tillitsvalgte?"},null,{"$f":"IF($E42=0,'RL krav full IFRS'!L69,\"\")","v":0}]
[{"$f":"'RL krav full IFRS'!A70","v":42},{"$f":"IF('RL krav full IFRS'!I70<>\"\",1,0)","v":0},{"$f":"IF('RL krav full IFRS'!J70<>\"\",1,0)","v":0},{"$f":"IF('RL krav full IFRS'!K70<>\"\",1,0)","v":0},0,{"$f":"IF($E43=0,'RL krav full IFRS'!A70,\"\")","v":42},{"$f":"IF($E43=0,'RL krav full IFRS'!B70,\"\")","v":"Er det for hver person omfattet av første ledd, som har hatt ansettelsesforhold eller verv for selskapet i løpet av regnskapsåret, gitt opplysninger spesifisert i samsvar med fjerde til niende ledd?:"},null,{"$f":"IF($E43=0,'RL krav full IFRS'!L70,\"\")","v":0}]
[{"$f":"'RL krav full IFRS'!A72","v":43},{"$f":"IF('RL krav full IFRS'!I72<>\"\",1,0)","v":0},{"$f":"IF('RL krav full IFRS'!J72<>\"\",1,0)","v":0},{"$f":"IF('RL krav full IFRS'!K72<>\"\",1,0)","v":0},0,{"$f":"IF($E44=0,'RL krav full IFRS'!A72,\"\")","v":43},{"$f":"IF($E44=0,'RL krav full IFRS'!B72,\"\")","v":"den totale lønn vedkommende har mottatt eller opptjent for tjenester ytt i løpet av regnskapsåret, herunder eventuelle møtehonorarer vedtatt av generalforsamlingen, "},null,{"$f":"IF($E44=0,'RL krav full IFRS'!L72,\"\")","v":0}]
[{"$f":"'RL krav full IFRS'!A73","v":44},{"$f":"IF('RL krav full IFRS'!I73<>\"\",1,0)","v":0},{"$f":"IF('RL krav full IFRS'!J73<>\"\",1,0)","v":0},{"$f":"IF('RL krav full IFRS'!K73<>\"\",1,0)","v":0},0,{"$f":"IF($E45=0,'RL krav full IFRS'!A73,\"\")","v":44},{"$f":"IF($E45=0,'RL krav full IFRS'!B73,\"\")","v":"godtgjørelse og fordeler vedkommende har mottatt fra foretak i samme konsern, "},null,{"$f":"IF($E45=0,'RL krav full IFRS'!L73,\"\")","v":0}]
[{"$f":"'RL krav full IFRS'!A74","v":45},{"$f":"IF('RL krav full IFRS'!I74<>\"\",1,0)","v":0},{"$f":"IF('RL krav full IFRS'!J74<>\"\",1,0)","v":0},{"$f":"IF('RL krav full IFRS'!K74<>\"\",1,0)","v":0},0,{"$f":"IF($E46=0,'RL krav full IFRS'!A74,\"\")","v":45},{"$f":"IF($E46=0,'RL krav full IFRS'!B74,\"\")","v":"godtgjørelse i form av overskuddsdeling eller bonusutbetalinger og grunnen til at slike ytelser er gitt, "},null,{"$f":"IF($E46=0,'RL krav full IFRS'!L74,\"\")","v":0}]
[{"$f":"'RL krav full IFRS'!A75","v":46},{"$f":"IF('RL krav full IFRS'!I75<>\"\",1,0)","v":0},{"$f":"IF('RL krav full IFRS'!J75<>\"\",1,0)","v":0},{"$f":"IF('RL krav full IFRS'!K75<>\"\",1,0)","v":0},0,{"$f":"IF($E47=0,'RL krav full IFRS'!A75,\"\")","v":46},{"$f":"IF($E47=0,'RL krav full IFRS'!B75,\"\")","v":"betydelig eller vesentlig tilleggsgodtgjørelse for spesielle tjenester utenfor de normale funksjoner for en leder, "},null,{"$f":"IF($E47=0,'RL krav full IFRS'!L75,\"\")","v":0}]
[{"$f":"'RL krav full IFRS'!A76","v":47},{"$f":"IF('RL krav full IFRS'!I76<>\"\",1,0)","v":0},{"$f":"IF('RL krav full IFRS'!J76<>\"\",1,0)","v":0},{"$f":"IF('RL krav full IFRS'!K76<>\"\",1,0)","v":0},0,{"$f":"IF($E48=0,'RL krav full IFRS'!A76,\"\")","v":47},{"$f":"IF($E48=0,'RL krav full IFRS'!B76,\"\")","v":"betalt eller skyldig vederlag til hver tidligere administrerende direktør og styreleder i regnskapsåret i forbindelse med avslutning av vedkommendes ansettelsesforhold eller verv, og "},null,{"$f":"IF($E48=0,'RL krav full IFRS'!L76,\"\")","v":0}]
[{"$f":"'RL krav full IFRS'!A77","v":48},{"$f":"IF('RL krav full IFRS'!I77<>\"\",1,0)","v":0},{"$f":"IF('RL krav full IFRS'!J77<>\"\",1,0)","v":0},{"$f":"IF('RL krav full IFRS'!K77<>\"\",1,0)","v":0},0,{"$f":"IF($E49=0,'RL krav full IFRS'!A77,\"\")","v":48},{"$f":"IF($E49=0,'RL krav full IFRS'!B77,\"\")","v":"beregnet verdi av totale fordeler i annet enn kontanter som anses som godtgjørelse."},null,{"$f":"IF($E49=0,'RL krav full IFRS'!L77,\"\")","v":0}]
[{"$f":"'RL krav full IFRS'!A81","v":49},{"$f":"IF('RL krav full IFRS'!I81<>\"\",1,0)","v":0},{"$f":"IF('RL krav full IFRS'!J81<>\"\",1,0)","v":0},{"$f":"IF('RL krav full IFRS'!K81<>\"\",1,0)","v":0},0,{"$f":"IF($E50=0,'RL krav full IFRS'!A81,\"\")","v":49},{"$f":"IF($E50=0,'RL krav full IFRS'!B81,\"\")","v":"antall opsjoner som er tildelt samt aksjer eller egenkapitalbevis som er gitt av foretaket i løpet av regnskapsåret, og vilkårene for å benytte disse, "},null,{"$f":"IF($E50=0,'RL krav full IFRS'!L81,\"\")","v":0}]
[{"$f":"'RL krav full IFRS'!A82","v":50},{"$f":"IF('RL krav full IFRS'!I82<>\"\",1,0)","v":0},{"$f":"IF('RL krav full IFRS'!J82<>\"\",1,0)","v":0},{"$f":"IF('RL krav full IFRS'!K82<>\"\",1,0)","v":0},0,{"$f":"IF($E51=0,'RL krav full IFRS'!A82,\"\")","v":50},{"$f":"IF($E51=0,'RL krav full IFRS'!B82,\"\")","v":"antall opsjoner som er innløst i løpet av regnskapsåret. For hver av disse skal det opplyses om antall aksjer eller egenkapitalbevis som eventuelt er utdelt, innløsningskursen og eventuelle utbetalinger fra selskapet knyttet til innløsningen"},null,{"$f":"IF($E51=0,'RL krav full IFRS'!L82,\"\")","v":0}]
[{"$f":"'RL krav full IFRS'!A83","v":51},{"$f":"IF('RL krav full IFRS'!I83<>\"\",1,0)","v":0},{"$f":"IF('RL krav full IFRS'!J83<>\"\",1,0)","v":0},{"$f":"IF('RL krav full IFRS'!K83<>\"\",1,0)","v":0},0,{"$f":"IF($E52=0,'RL krav full IFRS'!A83,\"\")","v":51},{"$f":"IF($E52=0,'RL krav full IFRS'!B83,\"\")","v":"antall opsjoner som ikke er innløst ved regnskapsårets slutt, innløsningskursen, forfallstidspunktet og hovedbetingelsene for å utøve rettighetene, "},null,{"$f":"IF($E52=0,'RL krav full IFRS'!L83,\"\")","v":0}]
[{"$f":"'RL krav full IFRS'!A84","v":52},{"$f":"IF('RL krav full IFRS'!I84<>\"\",1,0)","v":0},{"$f":"IF('RL krav full IFRS'!J84<>\"\",1,0)","v":0},{"$f":"IF('RL krav full IFRS'!K84<>\"\",1,0)","v":0},0,{"$f":"IF($E53=0,'RL krav full IFRS'!A84,\"\")","v":52},{"$f":"IF($E53=0,'RL krav full IFRS'!B84,\"\")","v":"endring i vilkår knyttet til eksisterende aksjeverdibaserte godtgjørelser i løpet av regnskapsåret."},null,{"$f":"IF($E53=0,'RL krav full IFRS'!L84,\"\")","v":0}]
[{"$f":"'RL krav full IFRS'!A86","v":53},{"$f":"IF('RL krav full IFRS'!I86<>\"\",1,0)","v":0},{"$f":"IF('RL krav full IFRS'!J86<>\"\",1,0)","v":0},{"$f":"IF('RL krav full IFRS'!K86<>\"\",1,0)","v":0},0,{"$f":"IF($E54=0,'RL krav full IFRS'!A86,\"\")","v":53},{"$f":"IF($E54=0,'RL krav full IFRS'!B86,\"\")","v":"Omfatter opplysningene om aksjeverdibaserte godtgjørelser minst en beskrivelse av på hvilken måte utviklingen av verdien til aksjene eller egenkapitalbevisene i selskapet eller i andre selskaper i samme konsern, har påvirket beregningen av den godtgjørelsen som er utbetalt i regnskapsåret?"},null,{"$f":"IF($E54=0,'RL krav full IFRS'!L86,\"\")","v":0}]
[{"$f":"'RL krav full IFRS'!A87","v":54},{"$f":"IF('RL krav full IFRS'!I87<>\"\",1,0)","v":0},{"$f":"IF('RL krav full IFRS'!J87<>\"\",1,0)","v":0},{"$f":"IF('RL krav full IFRS'!K87<>\"\",1,0)","v":0},0,{"$f":"IF($E55=0,'RL krav full IFRS'!A87,\"\")","v":54},{"$f":"IF($E55=0,'RL krav full IFRS'!B87,\"\")","v":"For avtaler om aksjeverdibaserte godtgjørelser som ikke er avsluttet ved regnskapsårets slutt, er det opplyst om avtalens løpetid?"},null,{"$f":"IF($E55=0,'RL krav full IFRS'!L87,\"\")","v":0}]
[{"$f":"'RL krav full IFRS'!A88","v":55},{"$f":"IF('RL krav full IFRS'!I88<>\"\",1,0)","v":0},{"$f":"IF('RL krav full IFRS'!J88<>\"\",1,0)","v":0},{"$f":"IF('RL krav full IFRS'!K88<>\"\",1,0)","v":0},0,{"$f":"IF($E56=0,'RL krav full IFRS'!A88,\"\")","v":55},{"$f":"IF($E56=0,'RL krav full IFRS'!B88,\"\")","v":"Er det i tillegg gitt en beskrivelse av på hvilken måte det er avtalt at utviklingen i aksjenes verdi vil påvirke beregningen av fremtidige utbetalinger?"},null,{"$f":"IF($E56=0,'RL krav full IFRS'!L88,\"\")","v":0}]
[{"$f":"'RL krav full IFRS'!A90","v":56},{"$f":"IF('RL krav full IFRS'!I90<>\"\",1,0)","v":0},{"$f":"IF('RL krav full IFRS'!J90<>\"\",1,0)","v":0},{"$f":"IF('RL krav full IFRS'!K90<>\"\",1,0)","v":0},0,{"$f":"IF($E57=0,'RL krav full IFRS'!A90,\"\")","v":56},{"$f":"IF($E57=0,'RL krav full IFRS'!B90,\"\")","v":"Er det for ytelsesbaserte pensjonsordninger minst opplyst om endringer i den enkeltes opptjente rettigheter etter ordningen i løpet av regnskapsåret?"},null,{"$f":"IF($E57=0,'RL krav full IFRS'!L90,\"\")","v":0}]
[{"$f":"'RL krav full IFRS'!A91","v":57},{"$f":"IF('RL krav full IFRS'!I91<>\"\",1,0)","v":0},{"$f":"IF('RL krav full IFRS'!J91<>\"\",1,0)","v":0},{"$f":"IF('RL krav full IFRS'!K91<>\"\",1,0)","v":0},0,{"$f":"IF($E58=0,'RL krav full IFRS'!A91,\"\")","v":57},{"$f":"IF($E58=0,'RL krav full IFRS'!B91,\"\")","v":"Er det for innskuddsbaserte pensjonsordninger minst gitt opplysninger om innskudd i ordningen som foretaket i løpet av regnskapsåret har betalt eller er blitt skyldig for hver person som er omfattet av første ledd?"},null,{"$f":"IF($E58=0,'RL krav full IFRS'!L91,\"\")","v":0}]
[{"$f":"'RL krav full IFRS'!A92","v":58},{"$f":"IF('RL krav full IFRS'!I92<>\"\",1,0)","v":0},{"$f":"IF('RL krav full IFRS'!J92<>\"\",1,0)","v":0},{"$f":"IF('RL krav full IFRS'!K92<>\"\",1,0)","v":0},0,{"$f":"IF($E59=0,'RL krav full IFRS'!A92,\"\")","v":58},{"$f":"IF($E59=0,'RL krav full IFRS'!B92,\"\")","v":"Er det opplyst om arten og omfanget av forpliktelser til å gi særskilt vederlag ved fratredelse, opphør eller endringer av ansettelsesforholdet eller vervet?"},null,{"$f":"IF($E59=0,'RL krav full IFRS'!L92,\"\")","v":0}]
[{"$f":"'RL krav full IFRS'!A93","v":59},{"$f":"IF('RL krav full IFRS'!I93<>\"\",1,0)","v":0},{"$f":"IF('RL krav full IFRS'!J93<>\"\",1,0)","v":0},{"$f":"IF('RL krav full IFRS'!K93<>\"\",1,0)","v":0},0,{"$f":"IF($E60=0,'RL krav full IFRS'!A93,\"\")","v":59},{"$f":"IF($E60=0,'RL krav full IFRS'!B93,\"\")","v":"Er det opplyst om lån, forskuddsbetalinger og sikkerhetsstillelser selskapet eller andre selskap i konsernet har gitt til personer som omfattet av første ledd, herunder hvilke vilkår som gjelder, avdragsplan, utestående beløp og rentesatsen?"},null,{"$f":"IF($E60=0,'RL krav full IFRS'!L93,\"\")","v":0}]
[{"$f":"'RL krav full IFRS'!A94","v":60},{"$f":"IF('RL krav full IFRS'!I94<>\"\",1,0)","v":0},{"$f":"IF('RL krav full IFRS'!J94<>\"\",1,0)","v":0},{"$f":"IF('RL krav full IFRS'!K94<>\"\",1,0)","v":0},0,{"$f":"IF($E61=0,'RL krav full IFRS'!A94,\"\")","v":60},{"$f":"IF($E61=0,'RL krav full IFRS'!B94,\"\")","v":"Når en eller flere opplysninger som nevnt i 9. ledd ikke gis fordi den regnskapspliktige ikke har hatt slike forpliktelser, er det opplyst særskilt om det?"},null,{"$f":"IF($E61=0,'RL krav full IFRS'!L94,\"\")","v":0}]
[{"$f":"'RL krav full IFRS'!A95","v":61},{"$f":"IF('RL krav full IFRS'!I95<>\"\",1,0)","v":0},{"$f":"IF('RL krav full IFRS'!J95<>\"\",1,0)","v":0},{"$f":"IF('RL krav full IFRS'!K95<>\"\",1,0)","v":0},0,{"$f":"IF($E62=0,'RL krav full IFRS'!A95,\"\")","v":61},{"$f":"IF($E62=0,'RL krav full IFRS'!B95,\"\")","v":"Tilleggskrav for ASA som skal utarbeide retningslinjer om fastsettelse av lønn og annen godtgjørelse til ledende personer etter allmennaksjeloven § 6-16 a: Er det opplyst om innholdet i retningslinjene?"},null,{"$f":"IF($E62=0,'RL krav full IFRS'!L95,\"\")","v":0}]
[{"$f":"'RL krav full IFRS'!A97","v":62},{"$f":"IF('RL krav full IFRS'!I97<>\"\",1,0)","v":0},{"$f":"IF('RL krav full IFRS'!J97<>\"\",1,0)","v":0},{"$f":"IF('RL krav full IFRS'!K97<>\"\",1,0)","v":0},0,{"$f":"IF($E63=0,'RL krav full IFRS'!A97,\"\")","v":62},{"$f":"IF($E63=0,'RL krav full IFRS'!B97,\"\")","v":"Er det opplyst om godtgjørelse til revisor og hvordan denne er fordelt på;\n• Godtgjørelse for lovpålagt revisjon?"},null,{"$f":"IF($E63=0,'RL krav full IFRS'!L97,\"\")","v":0}]
[{"$f":"'RL krav full IFRS'!A98","v":63},{"$f":"IF('RL krav full IFRS'!I98<>\"\",1,0)","v":0},{"$f":"IF('RL krav full IFRS'!J98<>\"\",1,0)","v":0},{"$f":"IF('RL krav full IFRS'!K98<>\"\",1,0)","v":0},0,{"$f":"IF($E64=0,'RL krav full IFRS'!A98,\"\")","v":63},{"$f":"IF($E64=0,'RL krav full IFRS'!B98,\"\")","v":"• Godtgjørelse for andre attestasjonstjenester?"},null,{"$f":"IF($E64=0,'RL krav full IFRS'!L98,\"\")","v":0}]
[{"$f":"'RL krav full IFRS'!A99","v":64},{"$f":"IF('RL krav full IFRS'!I99<>\"\",1,0)","v":0},{"$f":"IF('RL krav full IFRS'!J99<>\"\",1,0)","v":0},{"$f":"IF('RL krav full IFRS'!K99<>\"\",1,0)","v":0},0,{"$f":"IF($E65=0,'RL krav full IFRS'!A99,\"\")","v":64},{"$f":"IF($E65=0,'RL krav full IFRS'!B99,\"\")","v":"• Godtgjørelse for skatterådgivning?"},null,{"$f":"IF($E65=0,'RL krav full IFRS'!L99,\"\")","v":0}]
[{"$f":"'RL krav full IFRS'!A100","v":65},{"$f":"IF('RL krav full IFRS'!I100<>\"\",1,0)","v":0},{"$f":"IF('RL krav full IFRS'!J100<>\"\",1,0)","v":0},{"$f":"IF('RL krav full IFRS'!K100<>\"\",1,0)","v":0},{"$f":"SUM(B66:D66)","v":0},{"$f":"IF($E66=0,'RL krav full IFRS'!A100,\"\")","v":65},{"$f":"IF($E66=0,'RL krav full IFRS'!B100,\"\")","v":"• Godtgjørelse for andre tjenester utenfor revisjon (skal spesifiseres på vesentlig forskjellige tjenester)?"},null,{"$f":"IF($E66=0,'RL krav full IFRS'!L100,\"\")","v":0}]
[{"$f":"'RL krav full IFRS'!A101","v":66},{"$f":"IF('RL krav full IFRS'!I101<>\"\",1,0)","v":0},{"$f":"IF('RL krav full IFRS'!J101<>\"\",1,0)","v":0},{"$f":"IF('RL krav full IFRS'!K101<>\"\",1,0)","v":0},0,{"$f":"IF($E67=0,'RL krav full IFRS'!A101,\"\")","v":66},{"$f":"IF($E67=0,'RL krav full IFRS'!B101,\"\")","v":"Er det opplyst om eventuelt honorar ført direkte mot egenkapitalen i forbindelse med egenkapitaltransaksjoner?"},null,{"$f":"IF($E67=0,'RL krav full IFRS'!L101,\"\")","v":0}]
[{"$f":"'RL krav full IFRS'!A102","v":67},{"$f":"IF('RL krav full IFRS'!I102<>\"\",1,0)","v":0},{"$f":"IF('RL krav full IFRS'!J102<>\"\",1,0)","v":0},{"$f":"IF('RL krav full IFRS'!K102<>\"\",1,0)","v":0},0,{"$f":"IF($E68=0,'RL krav full IFRS'!A102,\"\")","v":67},{"$f":"IF($E68=0,'RL krav full IFRS'!B102,\"\")","v":"Inneholder opplysningene også godtgjørelse til foretak som revisor har et særskilt samarbeid med?"},null,{"$f":"IF($E68=0,'RL krav full IFRS'!L102,\"\")","v":0}]
[{"$f":"'RL krav full IFRS'!A104","v":68},{"$f":"IF('RL krav full IFRS'!I104<>\"\",1,0)","v":0},{"$f":"IF('RL krav full IFRS'!J104<>\"\",1,0)","v":0},{"$f":"IF('RL krav full IFRS'!K104<>\"\",1,0)","v":0},0,{"$f":"IF($E69=0,'RL krav full IFRS'!A104,\"\")","v":68},{"$f":"IF($E69=0,'RL krav full IFRS'!B104,\"\")","v":"Er lån til eller sikkerhetsstillelse til fordel for daglig leder og/eller leder for styret spesifisert?  "},null,{"$f":"IF($E69=0,'RL krav full IFRS'!L104,\"\")","v":0}]
[{"$f":"'RL krav full IFRS'!A105","v":69},{"$f":"IF('RL krav full IFRS'!I105<>\"\",1,0)","v":0},{"$f":"IF('RL krav full IFRS'!J105<>\"\",1,0)","v":0},{"$f":"IF('RL krav full IFRS'!K105<>\"\",1,0)","v":0},0,{"$f":"IF($E70=0,'RL krav full IFRS'!A105,\"\")","v":69},{"$f":"IF($E70=0,'RL krav full IFRS'!B105,\"\")","v":"Er det for hvert lån opplyst om hvilke vilkår som gjelder, herunder rentesatsen og avdragsplanen?"},null,{"$f":"IF($E70=0,'RL krav full IFRS'!L105,\"\")","v":0}]
[{"$f":"'RL krav full IFRS'!A106","v":70},{"$f":"IF('RL krav full IFRS'!I106<>\"\",1,0)","v":0},{"$f":"IF('RL krav full IFRS'!J106<>\"\",1,0)","v":0},{"$f":"IF('RL krav full IFRS'!K106<>\"\",1,0)","v":0},0,{"$f":"IF($E71=0,'RL krav full IFRS'!A106,\"\")","v":70},{"$f":"IF($E71=0,'RL krav full IFRS'!B106,\"\")","v":"Er det opplyst om samlede lån til og samlet sikkerhetsstillelse til fordel for nedennevnte og deres nærstående\n• ansatte (unntak for nærstående)?"},null,{"$f":"IF($E71=0,'RL krav full IFRS'!L106,\"\")","v":0}]
[{"$f":"'RL krav full IFRS'!A107","v":71},{"$f":"IF('RL krav full IFRS'!I107<>\"\",1,0)","v":0},{"$f":"IF('RL krav full IFRS'!J107<>\"\",1,0)","v":0},{"$f":"IF('RL krav full IFRS'!K107<>\"\",1,0)","v":0},0,{"$f":"IF($E72=0,'RL krav full IFRS'!A107,\"\")","v":71},{"$f":"IF($E72=0,'RL krav full IFRS'!B107,\"\")","v":"• aksjeeiere?"},null,{"$f":"IF($E72=0,'RL krav full IFRS'!L107,\"\")","v":0}]
[{"$f":"'RL krav full IFRS'!A108","v":72},{"$f":"IF('RL krav full IFRS'!I108<>\"\",1,0)","v":0},{"$f":"IF('RL krav full IFRS'!J108<>\"\",1,0)","v":0},{"$f":"IF('RL krav full IFRS'!K108<>\"\",1,0)","v":0},0,{"$f":"IF($E73=0,'RL krav full IFRS'!A108,\"\")","v":72},{"$f":"IF($E73=0,'RL krav full IFRS'!B108,\"\")","v":"• styremedlemmer?"},null,{"$f":"IF($E73=0,'RL krav full IFRS'!L108,\"\")","v":0}]
[{"$f":"'RL krav full IFRS'!A109","v":73},{"$f":"IF('RL krav full IFRS'!I109<>\"\",1,0)","v":0},{"$f":"IF('RL krav full IFRS'!J109<>\"\",1,0)","v":0},{"$f":"IF('RL krav full IFRS'!K109<>\"\",1,0)","v":0},0,{"$f":"IF($E74=0,'RL krav full IFRS'!A109,\"\")","v":73},{"$f":"IF($E74=0,'RL krav full IFRS'!B109,\"\")","v":"• medlemmer av bedriftsforsamlingen?"},null,{"$f":"IF($E74=0,'RL krav full IFRS'!L109,\"\")","v":0}]
[{"$f":"'RL krav full IFRS'!A110","v":74},{"$f":"IF('RL krav full IFRS'!I110<>\"\",1,0)","v":0},{"$f":"IF('RL krav full IFRS'!J110<>\"\",1,0)","v":0},{"$f":"IF('RL krav full IFRS'!K110<>\"\",1,0)","v":0},0,{"$f":"IF($E75=0,'RL krav full IFRS'!A110,\"\")","v":74},{"$f":"IF($E75=0,'RL krav full IFRS'!B110,\"\")","v":"Er det opplyst om hvilke vilkår som gjelder for slike lån eller sikkerhetsstillelser?"},null,{"$f":"IF($E75=0,'RL krav full IFRS'!L110,\"\")","v":0}]
[{"$f":"'RL krav full IFRS'!A112","v":75},{"$f":"IF('RL krav full IFRS'!I112<>\"\",1,0)","v":0},{"$f":"IF('RL krav full IFRS'!J112<>\"\",1,0)","v":0},{"$f":"IF('RL krav full IFRS'!K112<>\"\",1,0)","v":0},0,{"$f":"IF($E76=0,'RL krav full IFRS'!A112,\"\")","v":75},{"$f":"IF($E76=0,'RL krav full IFRS'!B112,\"\")","v":"Er lån eller sikkerhetsstillelser som utgjør mer enn 5 prosent av egenkapitalen spesifisert?"},null,{"$f":"IF($E76=0,'RL krav full IFRS'!L112,\"\")","v":0}]
[{"$f":"'RL krav full IFRS'!A115","v":76},{"$f":"IF('RL krav full IFRS'!I115<>\"\",1,0)","v":0},{"$f":"IF('RL krav full IFRS'!J115<>\"\",1,0)","v":0},{"$f":"IF('RL krav full IFRS'!K115<>\"\",1,0)","v":0},0,{"$f":"IF($E77=0,'RL krav full IFRS'!A115,\"\")","v":76},{"$f":"IF($E77=0,'RL krav full IFRS'!B115,\"\")","v":"Er det gitt tilstrekkelig sammenligningsinformasjon ihht IAS 1.38?"},null,{"$f":"IF($E77=0,'RL krav full IFRS'!L115,\"\")","v":0}]

{"sheet":"Ja-svar","index":2,"n_rows":77,"n_cols":7,"rows_kept":77,"cut":false,"hidden":false,"merged":[]}
[null,null,{"$f":"COUNTIF(C2:C98,\"=1\")","v":0},"Ja-svar",{"$f":"'RL krav full IFRS'!B2","v":0},{"$f":"'RL krav full IFRS'!B3","v":2024},"Kommentarer"]
[{"$f":"'RL krav full IFRS'!A12","v":1},{"$f":"IF('RL krav full IFRS'!I12<>\"\",1,0)","v":0},{"$f":"SUM(B2:B2)","v":0},{"$f":"IF($C2=1,'RL krav full IFRS'!A12,\"\")","v":""},{"$f":"IF($C2=1,'RL krav full IFRS'!B12,\"\")","v":""},null,{"$f":"IF($C2=0,\"\",'RL krav full IFRS'!L12)","v":""}]
[{"$f":"'RL krav full IFRS'!A13","v":2},{"$f":"IF('RL krav full IFRS'!I13<>\"\",1,0)","v":0},0,{"$f":"IF($C3=1,'RL krav full IFRS'!A13,\"\")","v":""},{"$f":"IF($C3=1,'RL krav full IFRS'!B13,\"\")","v":""},null,{"$f":"IF($C3=0,\"\",'RL krav full IFRS'!L13)","v":""}]
[{"$f":"'RL krav full IFRS'!A14","v":3},{"$f":"IF('RL krav full IFRS'!I14<>\"\",1,0)","v":0},0,{"$f":"IF($C4=1,'RL krav full IFRS'!A14,\"\")","v":""},{"$f":"IF($C4=1,'RL krav full IFRS'!B14,\"\")","v":""},null,{"$f":"IF($C4=0,\"\",'RL krav full IFRS'!L14)","v":""}]
[{"$f":"'RL krav full IFRS'!A15","v":4},{"$f":"IF('RL krav full IFRS'!I15<>\"\",1,0)","v":0},0,{"$f":"IF($C5=1,'RL krav full IFRS'!A15,\"\")","v":""},{"$f":"IF($C5=1,'RL krav full IFRS'!B15,\"\")","v":""},null,{"$f":"IF($C5=0,\"\",'RL krav full IFRS'!L15)","v":""}]
[{"$f":"'RL krav full IFRS'!A17","v":5},{"$f":"IF('RL krav full IFRS'!I17<>\"\",1,0)","v":0},0,{"$f":"IF($C6=1,'RL krav full IFRS'!A17,\"\")","v":""},{"$f":"IF($C6=1,'RL krav full IFRS'!B17,\"\")","v":""},null,{"$f":"IF($C6=0,\"\",'RL krav full IFRS'!L17)","v":""}]
[{"$f":"'RL krav full IFRS'!A18","v":6},{"$f":"IF('RL krav full IFRS'!I18<>\"\",1,0)","v":0},0,{"$f":"IF($C7=1,'RL krav full IFRS'!A18,\"\")","v":""},{"$f":"IF($C7=1,'RL krav full IFRS'!B18,\"\")","v":""},null,{"$f":"IF($C7=0,\"\",'RL krav full IFRS'!L18)","v":""}]
[{"$f":"'RL krav full IFRS'!A20","v":7},{"$f":"IF('RL krav full IFRS'!I20<>\"\",1,0)","v":0},0,{"$f":"IF($C8=1,'RL krav full IFRS'!A20,\"\")","v":""},{"$f":"IF($C8=1,'RL krav full IFRS'!B20,\"\")","v":""},null,{"$f":"IF($C8=0,\"\",'RL krav full IFRS'!L20)","v":""}]
[{"$f":"'RL krav full IFRS'!A21","v":8},{"$f":"IF('RL krav full IFRS'!I21<>\"\",1,0)","v":0},0,{"$f":"IF($C9=1,'RL krav full IFRS'!A21,\"\")","v":""},{"$f":"IF($C9=1,'RL krav full IFRS'!B21,\"\")","v":""},null,{"$f":"IF($C9=0,\"\",'RL krav full IFRS'!L21)","v":""}]
[{"$f":"'RL krav full IFRS'!A22","v":9},{"$f":"IF('RL krav full IFRS'!I22<>\"\",1,0)","v":0},0,{"$f":"IF($C10=1,'RL krav full IFRS'!A22,\"\")","v":""},{"$f":"IF($C10=1,'RL krav full IFRS'!B22,\"\")","v":""},null,{"$f":"IF($C10=0,\"\",'RL krav full IFRS'!L22)","v":""}]
[{"$f":"'RL krav full IFRS'!A24","v":10},{"$f":"IF('RL krav full IFRS'!I24<>\"\",1,0)","v":0},0,{"$f":"IF($C11=1,'RL krav full IFRS'!A24,\"\")","v":""},{"$f":"IF($C11=1,'RL krav full IFRS'!B24,\"\")","v":""},null,{"$f":"IF($C11=0,\"\",'RL krav full IFRS'!L24)","v":""}]
[{"$f":"'RL krav full IFRS'!A25","v":11},{"$f":"IF('RL krav full IFRS'!I25<>\"\",1,0)","v":0},0,{"$f":"IF($C12=1,'RL krav full IFRS'!A25,\"\")","v":""},{"$f":"IF($C12=1,'RL krav full IFRS'!B25,\"\")","v":""},null,{"$f":"IF($C12=0,\"\",'RL krav full IFRS'!L25)","v":""}]
[{"$f":"'RL krav full IFRS'!A26","v":12},{"$f":"IF('RL krav full IFRS'!I26<>\"\",1,0)","v":0},0,{"$f":"IF($C13=1,'RL krav full IFRS'!A26,\"\")","v":""},{"$f":"IF($C13=1,'RL krav full IFRS'!B26,\"\")","v":""},null,{"$f":"IF($C13=0,\"\",'RL krav full IFRS'!L26)","v":""}]
[{"$f":"'RL krav full IFRS'!A27","v":13},{"$f":"IF('RL krav full IFRS'!I27<>\"\",1,0)","v":0},0,{"$f":"IF($C14=1,'RL krav full IFRS'!A27,\"\")","v":""},{"$f":"IF($C14=1,'RL krav full IFRS'!B27,\"\")","v":""},null,{"$f":"IF($C14=0,\"\",'RL krav full IFRS'!L27)","v":""}]
[{"$f":"'RL krav full IFRS'!A29","v":14},{"$f":"IF('RL krav full IFRS'!I29<>\"\",1,0)","v":0},0,{"$f":"IF($C15=1,'RL krav full IFRS'!A29,\"\")","v":""},{"$f":"IF($C15=1,'RL krav full IFRS'!B29,\"\")","v":""},null,{"$f":"IF($C15=0,\"\",'RL krav full IFRS'!L29)","v":""}]
[{"$f":"'RL krav full IFRS'!A30","v":15},{"$f":"IF('RL krav full IFRS'!I30<>\"\",1,0)","v":0},0,{"$f":"IF($C16=1,'RL krav full IFRS'!A30,\"\")","v":""},{"$f":"IF($C16=1,'RL krav full IFRS'!B30,\"\")","v":""},null,{"$f":"IF($C16=0,\"\",'RL krav full IFRS'!L30)","v":""}]
[{"$f":"'RL krav full IFRS'!A31","v":16},{"$f":"IF('RL krav full IFRS'!I31<>\"\",1,0)","v":0},0,{"$f":"IF($C17=1,'RL krav full IFRS'!A31,\"\")","v":""},{"$f":"IF($C17=1,'RL krav full IFRS'!B31,\"\")","v":""},null,{"$f":"IF($C17=0,\"\",'RL krav full IFRS'!L31)","v":""}]
[{"$f":"'RL krav full IFRS'!A32","v":17},{"$f":"IF('RL krav full IFRS'!I32<>\"\",1,0)","v":0},0,{"$f":"IF($C18=1,'RL krav full IFRS'!A32,\"\")","v":""},{"$f":"IF($C18=1,'RL krav full IFRS'!B32,\"\")","v":""},null,{"$f":"IF($C18=0,\"\",'RL krav full IFRS'!L32)","v":""}]
[{"$f":"'RL krav full IFRS'!A33","v":18},{"$f":"IF('RL krav full IFRS'!I33<>\"\",1,0)","v":0},0,{"$f":"IF($C19=1,'RL krav full IFRS'!A33,\"\")","v":""},{"$f":"IF($C19=1,'RL krav full IFRS'!B33,\"\")","v":""},null,{"$f":"IF($C19=0,\"\",'RL krav full IFRS'!L33)","v":""}]
[{"$f":"'RL krav full IFRS'!A34","v":19},{"$f":"IF('RL krav full IFRS'!I34<>\"\",1,0)","v":0},0,{"$f":"IF($C20=1,'RL krav full IFRS'!A34,\"\")","v":""},{"$f":"IF($C20=1,'RL krav full IFRS'!B34,\"\")","v":""},null,{"$f":"IF($C20=0,\"\",'RL krav full IFRS'!L34)","v":""}]
[{"$f":"'RL krav full IFRS'!A35","v":20},{"$f":"IF('RL krav full IFRS'!I35<>\"\",1,0)","v":0},0,{"$f":"IF($C21=1,'RL krav full IFRS'!A35,\"\")","v":""},{"$f":"IF($C21=1,'RL krav full IFRS'!B35,\"\")","v":""},null,{"$f":"IF($C21=0,\"\",'RL krav full IFRS'!L35)","v":""}]
[{"$f":"'RL krav full IFRS'!A37","v":21},{"$f":"IF('RL krav full IFRS'!I37<>\"\",1,0)","v":0},0,{"$f":"IF($C22=1,'RL krav full IFRS'!A37,\"\")","v":""},{"$f":"IF($C22=1,'RL krav full IFRS'!B37,\"\")","v":""},null,{"$f":"IF($C22=0,\"\",'RL krav full IFRS'!L37)","v":""}]
[{"$f":"'RL krav full IFRS'!A40","v":22},{"$f":"IF('RL krav full IFRS'!I40<>\"\",1,0)","v":0},0,{"$f":"IF($C23=1,'RL krav full IFRS'!A40,\"\")","v":""},{"$f":"IF($C23=1,'RL krav full IFRS'!B40,\"\")","v":""},null,{"$f":"IF($C23=0,\"\",'RL krav full IFRS'!L40)","v":""}]
[{"$f":"'RL krav full IFRS'!A41","v":23},{"$f":"IF('RL krav full IFRS'!I41<>\"\",1,0)","v":0},0,{"$f":"IF($C24=1,'RL krav full IFRS'!A41,\"\")","v":""},{"$f":"IF($C24=1,'RL krav full IFRS'!B41,\"\")","v":""},null,{"$f":"IF($C24=0,\"\",'RL krav full IFRS'!L41)","v":""}]
[{"$f":"'RL krav full IFRS'!A42","v":24},{"$f":"IF('RL krav full IFRS'!I42<>\"\",1,0)","v":0},0,{"$f":"IF($C25=1,'RL krav full IFRS'!A42,\"\")","v":""},{"$f":"IF($C25=1,'RL krav full IFRS'!B42,\"\")","v":""},null,{"$f":"IF($C25=0,\"\",'RL krav full IFRS'!L42)","v":""}]
[{"$f":"'RL krav full IFRS'!A44","v":25},{"$f":"IF('RL krav full IFRS'!I44<>\"\",1,0)","v":0},0,{"$f":"IF($C26=1,'RL krav full IFRS'!A44,\"\")","v":""},{"$f":"IF($C26=1,'RL krav full IFRS'!B44,\"\")","v":""},null,{"$f":"IF($C26=0,\"\",'RL krav full IFRS'!L44)","v":""}]
[{"$f":"'RL krav full IFRS'!A45","v":26},{"$f":"IF('RL krav full IFRS'!I45<>\"\",1,0)","v":0},0,{"$f":"IF($C27=1,'RL krav full IFRS'!A45,\"\")","v":""},{"$f":"IF($C27=1,'RL krav full IFRS'!B45,\"\")","v":""},null,{"$f":"IF($C27=0,\"\",'RL krav full IFRS'!L45)","v":""}]
[{"$f":"'RL krav full IFRS'!A47","v":27},{"$f":"IF('RL krav full IFRS'!I47<>\"\",1,0)","v":0},0,{"$f":"IF($C28=1,'RL krav full IFRS'!A47,\"\")","v":""},{"$f":"IF($C28=1,'RL krav full IFRS'!B47,\"\")","v":""},null,{"$f":"IF($C28=0,\"\",'RL krav full IFRS'!L47)","v":""}]
[{"$f":"'RL krav full IFRS'!A48","v":28},{"$f":"IF('RL krav full IFRS'!I48<>\"\",1,0)","v":0},0,{"$f":"IF($C29=1,'RL krav full IFRS'!A48,\"\")","v":""},{"$f":"IF($C29=1,'RL krav full IFRS'!B48,\"\")","v":""},null,{"$f":"IF($C29=0,\"\",'RL krav full IFRS'!L48)","v":""}]
[{"$f":"'RL krav full IFRS'!A50","v":29},{"$f":"IF('RL krav full IFRS'!I50<>\"\",1,0)","v":0},0,{"$f":"IF($C30=1,'RL krav full IFRS'!A50,\"\")","v":""},{"$f":"IF($C30=1,'RL krav full IFRS'!B50,\"\")","v":""},null,{"$f":"IF($C30=0,\"\",'RL krav full IFRS'!L50)","v":""}]
[{"$f":"'RL krav full IFRS'!A51","v":30},{"$f":"IF('RL krav full IFRS'!I51<>\"\",1,0)","v":0},0,{"$f":"IF($C31=1,'RL krav full IFRS'!A51,\"\")","v":""},{"$f":"IF($C31=1,'RL krav full IFRS'!B51,\"\")","v":""},null,{"$f":"IF($C31=0,\"\",'RL krav full IFRS'!L51)","v":""}]
[{"$f":"'RL krav full IFRS'!A52","v":31},{"$f":"IF('RL krav full IFRS'!I52<>\"\",1,0)","v":0},{"$f":"SUM(B32:B32)","v":0},{"$f":"IF($C32=1,'RL krav full IFRS'!A52,\"\")","v":""},{"$f":"IF($C32=1,'RL krav full IFRS'!B52,\"\")","v":""},null,{"$f":"IF($C32=0,\"\",'RL krav full IFRS'!L52)","v":""}]
[{"$f":"'RL krav full IFRS'!A53","v":32},{"$f":"IF('RL krav full IFRS'!I53<>\"\",1,0)","v":0},0,{"$f":"IF($C33=1,'RL krav full IFRS'!A53,\"\")","v":""},{"$f":"IF($C33=1,'RL krav full IFRS'!B53,\"\")","v":""},null,{"$f":"IF($C33=0,\"\",'RL krav full IFRS'!L53)","v":""}]
[{"$f":"'RL krav full IFRS'!A55","v":33},{"$f":"IF('RL krav full IFRS'!I55<>\"\",1,0)","v":0},0,{"$f":"IF($C34=1,'RL krav full IFRS'!A55,\"\")","v":""},{"$f":"IF($C34=1,'RL krav full IFRS'!B55,\"\")","v":""},null,{"$f":"IF($C34=0,\"\",'RL krav full IFRS'!L55)","v":""}]
[{"$f":"'RL krav full IFRS'!A58","v":34},{"$f":"IF('RL krav full IFRS'!I58<>\"\",1,0)","v":0},0,{"$f":"IF($C35=1,'RL krav full IFRS'!A58,\"\")","v":""},{"$f":"IF($C35=1,'RL krav full IFRS'!B58,\"\")","v":""},null,{"$f":"IF($C35=0,\"\",'RL krav full IFRS'!L58)","v":""}]
[{"$f":"'RL krav full IFRS'!A59","v":35},{"$f":"IF('RL krav full IFRS'!I59<>\"\",1,0)","v":0},0,{"$f":"IF($C36=1,'RL krav full IFRS'!A59,\"\")","v":""},{"$f":"IF($C36=1,'RL krav full IFRS'!B59,\"\")","v":""},null,{"$f":"IF($C36=0,\"\",'RL krav full IFRS'!L59)","v":""}]
[{"$f":"'RL krav full IFRS'!A60","v":36},{"$f":"IF('RL krav full IFRS'!I60<>\"\",1,0)","v":0},0,{"$f":"IF($C37=1,'RL krav full IFRS'!A60,\"\")","v":""},{"$f":"IF($C37=1,'RL krav full IFRS'!B60,\"\")","v":""},null,{"$f":"IF($C37=0,\"\",'RL krav full IFRS'!L60)","v":""}]
[{"$f":"'RL krav full IFRS'!A61","v":37},{"$f":"IF('RL krav full IFRS'!I61<>\"\",1,0)","v":0},0,{"$f":"IF($C38=1,'RL krav full IFRS'!A61,\"\")","v":""},{"$f":"IF($C38=1,'RL krav full IFRS'!B61,\"\")","v":""},null,{"$f":"IF($C38=0,\"\",'RL krav full IFRS'!L61)","v":""}]
[{"$f":"'RL krav full IFRS'!A63","v":38},{"$f":"IF('RL krav full IFRS'!I63<>\"\",1,0)","v":0},0,{"$f":"IF($C39=1,'RL krav full IFRS'!A63,\"\")","v":""},{"$f":"IF($C39=1,'RL krav full IFRS'!B63,\"\")","v":""},null,{"$f":"IF($C39=0,\"\",'RL krav full IFRS'!L63)","v":""}]
[{"$f":"'RL krav full IFRS'!A64","v":39},{"$f":"IF('RL krav full IFRS'!I64<>\"\",1,0)","v":0},0,{"$f":"IF($C40=1,'RL krav full IFRS'!A64,\"\")","v":""},{"$f":"IF($C40=1,'RL krav full IFRS'!B64,\"\")","v":""},null,{"$f":"IF($C40=0,\"\",'RL krav full IFRS'!L64)","v":""}]
[{"$f":"'RL krav full IFRS'!A68","v":40},{"$f":"IF('RL krav full IFRS'!I68<>\"\",1,0)","v":0},0,{"$f":"IF($C41=1,'RL krav full IFRS'!A68,\"\")","v":""},{"$f":"IF($C41=1,'RL krav full IFRS'!B68,\"\")","v":""},null,{"$f":"IF($C41=0,\"\",'RL krav full IFRS'!L68)","v":""}]
[{"$f":"'RL krav full IFRS'!A69","v":41},{"$f":"IF('RL krav full IFRS'!I69<>\"\",1,0)","v":0},0,{"$f":"IF($C42=1,'RL krav full IFRS'!A69,\"\")","v":""},{"$f":"IF($C42=1,'RL krav full IFRS'!B69,\"\")","v":""},null,{"$f":"IF($C42=0,\"\",'RL krav full IFRS'!L69)","v":""}]
[{"$f":"'RL krav full IFRS'!A70","v":42},{"$f":"IF('RL krav full IFRS'!I70<>\"\",1,0)","v":0},0,{"$f":"IF($C43=1,'RL krav full IFRS'!A70,\"\")","v":""},{"$f":"IF($C43=1,'RL krav full IFRS'!B70,\"\")","v":""},null,{"$f":"IF($C43=0,\"\",'RL krav full IFRS'!L70)","v":""}]
[{"$f":"'RL krav full IFRS'!A72","v":43},{"$f":"IF('RL krav full IFRS'!I72<>\"\",1,0)","v":0},0,{"$f":"IF($C44=1,'RL krav full IFRS'!A72,\"\")","v":""},{"$f":"IF($C44=1,'RL krav full IFRS'!B72,\"\")","v":""},null,{"$f":"IF($C44=0,\"\",'RL krav full IFRS'!L72)","v":""}]
[{"$f":"'RL krav full IFRS'!A73","v":44},{"$f":"IF('RL krav full IFRS'!I73<>\"\",1,0)","v":0},0,{"$f":"IF($C45=1,'RL krav full IFRS'!A73,\"\")","v":""},{"$f":"IF($C45=1,'RL krav full IFRS'!B73,\"\")","v":""},null,{"$f":"IF($C45=0,\"\",'RL krav full IFRS'!L73)","v":""}]
[{"$f":"'RL krav full IFRS'!A74","v":45},{"$f":"IF('RL krav full IFRS'!I74<>\"\",1,0)","v":0},0,{"$f":"IF($C46=1,'RL krav full IFRS'!A74,\"\")","v":""},{"$f":"IF($C46=1,'RL krav full IFRS'!B74,\"\")","v":""},null,{"$f":"IF($C46=0,\"\",'RL krav full IFRS'!L74)","v":""}]
[{"$f":"'RL krav full IFRS'!A75","v":46},{"$f":"IF('RL krav full IFRS'!I75<>\"\",1,0)","v":0},0,{"$f":"IF($C47=1,'RL krav full IFRS'!A75,\"\")","v":""},{"$f":"IF($C47=1,'RL krav full IFRS'!B75,\"\")","v":""},null,{"$f":"IF($C47=0,\"\",'RL krav full IFRS'!L75)","v":""}]
[{"$f":"'RL krav full IFRS'!A76","v":47},{"$f":"IF('RL krav full IFRS'!I76<>\"\",1,0)","v":0},0,{"$f":"IF($C48=1,'RL krav full IFRS'!A76,\"\")","v":""},{"$f":"IF($C48=1,'RL krav full IFRS'!B76,\"\")","v":""},null,{"$f":"IF($C48=0,\"\",'RL krav full IFRS'!L76)","v":""}]
[{"$f":"'RL krav full IFRS'!A77","v":48},{"$f":"IF('RL krav full IFRS'!I77<>\"\",1,0)","v":0},0,{"$f":"IF($C49=1,'RL krav full IFRS'!A77,\"\")","v":""},{"$f":"IF($C49=1,'RL krav full IFRS'!B77,\"\")","v":""},null,{"$f":"IF($C49=0,\"\",'RL krav full IFRS'!L77)","v":""}]
[{"$f":"'RL krav full IFRS'!A81","v":49},{"$f":"IF('RL krav full IFRS'!I81<>\"\",1,0)","v":0},0,{"$f":"IF($C50=1,'RL krav full IFRS'!A81,\"\")","v":""},{"$f":"IF($C50=1,'RL krav full IFRS'!B81,\"\")","v":""},null,{"$f":"IF($C50=0,\"\",'RL krav full IFRS'!L81)","v":""}]
[{"$f":"'RL krav full IFRS'!A82","v":50},{"$f":"IF('RL krav full IFRS'!I82<>\"\",1,0)","v":0},0,{"$f":"IF($C51=1,'RL krav full IFRS'!A82,\"\")","v":""},{"$f":"IF($C51=1,'RL krav full IFRS'!B82,\"\")","v":""},null,{"$f":"IF($C51=0,\"\",'RL krav full IFRS'!L82)","v":""}]
[{"$f":"'RL krav full IFRS'!A83","v":51},{"$f":"IF('RL krav full IFRS'!I83<>\"\",1,0)","v":0},0,{"$f":"IF($C52=1,'RL krav full IFRS'!A83,\"\")","v":""},{"$f":"IF($C52=1,'RL krav full IFRS'!B83,\"\")","v":""},null,{"$f":"IF($C52=0,\"\",'RL krav full IFRS'!L83)","v":""}]
[{"$f":"'RL krav full IFRS'!A84","v":52},{"$f":"IF('RL krav full IFRS'!I84<>\"\",1,0)","v":0},0,{"$f":"IF($C53=1,'RL krav full IFRS'!A84,\"\")","v":""},{"$f":"IF($C53=1,'RL krav full IFRS'!B84,\"\")","v":""},null,{"$f":"IF($C53=0,\"\",'RL krav full IFRS'!L84)","v":""}]
[{"$f":"'RL krav full IFRS'!A86","v":53},{"$f":"IF('RL krav full IFRS'!I86<>\"\",1,0)","v":0},0,{"$f":"IF($C54=1,'RL krav full IFRS'!A86,\"\")","v":""},{"$f":"IF($C54=1,'RL krav full IFRS'!B86,\"\")","v":""},null,{"$f":"IF($C54=0,\"\",'RL krav full IFRS'!L86)","v":""}]
[{"$f":"'RL krav full IFRS'!A87","v":54},{"$f":"IF('RL krav full IFRS'!I87<>\"\",1,0)","v":0},0,{"$f":"IF($C55=1,'RL krav full IFRS'!A87,\"\")","v":""},{"$f":"IF($C55=1,'RL krav full IFRS'!B87,\"\")","v":""},null,{"$f":"IF($C55=0,\"\",'RL krav full IFRS'!L87)","v":""}]
[{"$f":"'RL krav full IFRS'!A88","v":55},{"$f":"IF('RL krav full IFRS'!I88<>\"\",1,0)","v":0},0,{"$f":"IF($C56=1,'RL krav full IFRS'!A88,\"\")","v":""},{"$f":"IF($C56=1,'RL krav full IFRS'!B88,\"\")","v":""},null,{"$f":"IF($C56=0,\"\",'RL krav full IFRS'!L88)","v":""}]
[{"$f":"'RL krav full IFRS'!A90","v":56},{"$f":"IF('RL krav full IFRS'!I90<>\"\",1,0)","v":0},0,{"$f":"IF($C57=1,'RL krav full IFRS'!A90,\"\")","v":""},{"$f":"IF($C57=1,'RL krav full IFRS'!B90,\"\")","v":""},null,{"$f":"IF($C57=0,\"\",'RL krav full IFRS'!L90)","v":""}]
[{"$f":"'RL krav full IFRS'!A91","v":57},{"$f":"IF('RL krav full IFRS'!I91<>\"\",1,0)","v":0},0,{"$f":"IF($C58=1,'RL krav full IFRS'!A91,\"\")","v":""},{"$f":"IF($C58=1,'RL krav full IFRS'!B91,\"\")","v":""},null,{"$f":"IF($C58=0,\"\",'RL krav full IFRS'!L91)","v":""}]
[{"$f":"'RL krav full IFRS'!A92","v":58},{"$f":"IF('RL krav full IFRS'!I92<>\"\",1,0)","v":0},0,{"$f":"IF($C59=1,'RL krav full IFRS'!A92,\"\")","v":""},{"$f":"IF($C59=1,'RL krav full IFRS'!B92,\"\")","v":""},null,{"$f":"IF($C59=0,\"\",'RL krav full IFRS'!L92)","v":""}]
[{"$f":"'RL krav full IFRS'!A93","v":59},{"$f":"IF('RL krav full IFRS'!I93<>\"\",1,0)","v":0},0,{"$f":"IF($C60=1,'RL krav full IFRS'!A93,\"\")","v":""},{"$f":"IF($C60=1,'RL krav full IFRS'!B93,\"\")","v":""},null,{"$f":"IF($C60=0,\"\",'RL krav full IFRS'!L93)","v":""}]
[{"$f":"'RL krav full IFRS'!A94","v":60},{"$f":"IF('RL krav full IFRS'!I94<>\"\",1,0)","v":0},0,{"$f":"IF($C61=1,'RL krav full IFRS'!A94,\"\")","v":""},{"$f":"IF($C61=1,'RL krav full IFRS'!B94,\"\")","v":""},null,{"$f":"IF($C61=0,\"\",'RL krav full IFRS'!L94)","v":""}]
[{"$f":"'RL krav full IFRS'!A95","v":61},{"$f":"IF('RL krav full IFRS'!I95<>\"\",1,0)","v":0},0,{"$f":"IF($C62=1,'RL krav full IFRS'!A95,\"\")","v":""},{"$f":"IF($C62=1,'RL krav full IFRS'!B95,\"\")","v":""},null,{"$f":"IF($C62=0,\"\",'RL krav full IFRS'!L95)","v":""}]
[{"$f":"'RL krav full IFRS'!A97","v":62},{"$f":"IF('RL krav full IFRS'!I97<>\"\",1,0)","v":0},0,{"$f":"IF($C63=1,'RL krav full IFRS'!A97,\"\")","v":""},{"$f":"IF($C63=1,'RL krav full IFRS'!B97,\"\")","v":""},null,{"$f":"IF($C63=0,\"\",'RL krav full IFRS'!L97)","v":""}]
[{"$f":"'RL krav full IFRS'!A98","v":63},{"$f":"IF('RL krav full IFRS'!I98<>\"\",1,0)","v":0},{"$f":"SUM(B64:B64)","v":0},{"$f":"IF($C64=1,'RL krav full IFRS'!A98,\"\")","v":""},{"$f":"IF($C64=1,'RL krav full IFRS'!B98,\"\")","v":""},null,{"$f":"IF($C64=0,\"\",'RL krav full IFRS'!L98)","v":""}]
[{"$f":"'RL krav full IFRS'!A99","v":64},{"$f":"IF('RL krav full IFRS'!I99<>\"\",1,0)","v":0},0,{"$f":"IF($C65=1,'RL krav full IFRS'!A99,\"\")","v":""},{"$f":"IF($C65=1,'RL krav full IFRS'!B99,\"\")","v":""},null,{"$f":"IF($C65=0,\"\",'RL krav full IFRS'!L99)","v":""}]
[{"$f":"'RL krav full IFRS'!A100","v":65},{"$f":"IF('RL krav full IFRS'!I100<>\"\",1,0)","v":0},0,{"$f":"IF($C66=1,'RL krav full IFRS'!A100,\"\")","v":""},{"$f":"IF($C66=1,'RL krav full IFRS'!B100,\"\")","v":""},null,{"$f":"IF($C66=0,\"\",'RL krav full IFRS'!L100)","v":""}]
[{"$f":"'RL krav full IFRS'!A101","v":66},{"$f":"IF('RL krav full IFRS'!I101<>\"\",1,0)","v":0},0,{"$f":"IF($C67=1,'RL krav full IFRS'!A101,\"\")","v":""},{"$f":"IF($C67=1,'RL krav full IFRS'!B101,\"\")","v":""},null,{"$f":"IF($C67=0,\"\",'RL krav full IFRS'!L101)","v":""}]
[{"$f":"'RL krav full IFRS'!A102","v":67},{"$f":"IF('RL krav full IFRS'!I102<>\"\",1,0)","v":0},0,{"$f":"IF($C68=1,'RL krav full IFRS'!A102,\"\")","v":""},{"$f":"IF($C68=1,'RL krav full IFRS'!B102,\"\")","v":""},null,{"$f":"IF($C68=0,\"\",'RL krav full IFRS'!L102)","v":""}]
[{"$f":"'RL krav full IFRS'!A104","v":68},{"$f":"IF('RL krav full IFRS'!I104<>\"\",1,0)","v":0},0,{"$f":"IF($C69=1,'RL krav full IFRS'!A104,\"\")","v":""},{"$f":"IF($C69=1,'RL krav full IFRS'!B104,\"\")","v":""},null,{"$f":"IF($C69=0,\"\",'RL krav full IFRS'!L104)","v":""}]
[{"$f":"'RL krav full IFRS'!A105","v":69},{"$f":"IF('RL krav full IFRS'!I105<>\"\",1,0)","v":0},0,{"$f":"IF($C70=1,'RL krav full IFRS'!A105,\"\")","v":""},{"$f":"IF($C70=1,'RL krav full IFRS'!B105,\"\")","v":""},null,{"$f":"IF($C70=0,\"\",'RL krav full IFRS'!L105)","v":""}]
[{"$f":"'RL krav full IFRS'!A106","v":70},{"$f":"IF('RL krav full IFRS'!I106<>\"\",1,0)","v":0},0,{"$f":"IF($C71=1,'RL krav full IFRS'!A106,\"\")","v":""},{"$f":"IF($C71=1,'RL krav full IFRS'!B106,\"\")","v":""},null,{"$f":"IF($C71=0,\"\",'RL krav full IFRS'!L106)","v":""}]
[{"$f":"'RL krav full IFRS'!A107","v":71},{"$f":"IF('RL krav full IFRS'!I107<>\"\",1,0)","v":0},0,{"$f":"IF($C72=1,'RL krav full IFRS'!A107,\"\")","v":""},{"$f":"IF($C72=1,'RL krav full IFRS'!B107,\"\")","v":""},null,{"$f":"IF($C72=0,\"\",'RL krav full IFRS'!L107)","v":""}]
[{"$f":"'RL krav full IFRS'!A108","v":72},{"$f":"IF('RL krav full IFRS'!I108<>\"\",1,0)","v":0},0,{"$f":"IF($C73=1,'RL krav full IFRS'!A108,\"\")","v":""},{"$f":"IF($C73=1,'RL krav full IFRS'!B108,\"\")","v":""},null,{"$f":"IF($C73=0,\"\",'RL krav full IFRS'!L108)","v":""}]
[{"$f":"'RL krav full IFRS'!A109","v":73},{"$f":"IF('RL krav full IFRS'!I109<>\"\",1,0)","v":0},0,{"$f":"IF($C74=1,'RL krav full IFRS'!A109,\"\")","v":""},{"$f":"IF($C74=1,'RL krav full IFRS'!B109,\"\")","v":""},null,{"$f":"IF($C74=0,\"\",'RL krav full IFRS'!L109)","v":""}]
[{"$f":"'RL krav full IFRS'!A110","v":74},{"$f":"IF('RL krav full IFRS'!I110<>\"\",1,0)","v":0},0,{"$f":"IF($C75=1,'RL krav full IFRS'!A110,\"\")","v":""},{"$f":"IF($C75=1,'RL krav full IFRS'!B110,\"\")","v":""},null,{"$f":"IF($C75=0,\"\",'RL krav full IFRS'!L110)","v":""}]
[{"$f":"'RL krav full IFRS'!A112","v":75},{"$f":"IF('RL krav full IFRS'!I112<>\"\",1,0)","v":0},0,{"$f":"IF($C76=1,'RL krav full IFRS'!A112,\"\")","v":""},{"$f":"IF($C76=1,'RL krav full IFRS'!B112,\"\")","v":""},null,{"$f":"IF($C76=0,\"\",'RL krav full IFRS'!L112)","v":""}]
[{"$f":"'RL krav full IFRS'!A115","v":76},{"$f":"IF('RL krav full IFRS'!I115<>\"\",1,0)","v":0},0,{"$f":"IF($C77=1,'RL krav full IFRS'!A115,\"\")","v":""},{"$f":"IF($C77=1,'RL krav full IFRS'!B115,\"\")","v":""},null,{"$f":"IF($C77=0,\"\",'RL krav full IFRS'!L115)","v":""}]

{"sheet":"Nei-svar","index":3,"n_rows":77,"n_cols":7,"rows_kept":77,"cut":false,"hidden":false,"merged":[]}
[null,null,{"$f":"COUNTIF(C2:C77,\"=1\")","v":0},"Nei-svar",{"$f":"'RL krav full IFRS'!B2","v":0},{"$f":"'RL krav full IFRS'!B3","v":2024},"Kommentarer"]
[{"$f":"'RL krav full IFRS'!A12","v":1},{"$f":"IF('RL krav full IFRS'!J12<>\"\",1,0)","v":0},{"$f":"SUM(B2:B2)","v":0},{"$f":"IF($C2=1,'RL krav full IFRS'!A12,\"\")","v":""},{"$f":"IF($C2=1,'RL krav full IFRS'!B12,\"\")","v":""},null,{"$f":"IF($C2=0,\"\",'RL krav full IFRS'!L12)","v":""}]
[{"$f":"'RL krav full IFRS'!A13","v":2},{"$f":"IF('RL krav full IFRS'!J13<>\"\",1,0)","v":0},0,{"$f":"IF($C3=1,'RL krav full IFRS'!A13,\"\")","v":""},{"$f":"IF($C3=1,'RL krav full IFRS'!B13,\"\")","v":""},null,{"$f":"IF($C3=0,\"\",'RL krav full IFRS'!L13)","v":""}]
[{"$f":"'RL krav full IFRS'!A14","v":3},{"$f":"IF('RL krav full IFRS'!J14<>\"\",1,0)","v":0},0,{"$f":"IF($C4=1,'RL krav full IFRS'!A14,\"\")","v":""},{"$f":"IF($C4=1,'RL krav full IFRS'!B14,\"\")","v":""},null,{"$f":"IF($C4=0,\"\",'RL krav full IFRS'!L14)","v":""}]
[{"$f":"'RL krav full IFRS'!A15","v":4},{"$f":"IF('RL krav full IFRS'!J15<>\"\",1,0)","v":0},0,{"$f":"IF($C5=1,'RL krav full IFRS'!A15,\"\")","v":""},{"$f":"IF($C5=1,'RL krav full IFRS'!B15,\"\")","v":""},null,{"$f":"IF($C5=0,\"\",'RL krav full IFRS'!L15)","v":""}]
[{"$f":"'RL krav full IFRS'!A17","v":5},{"$f":"IF('RL krav full IFRS'!J17<>\"\",1,0)","v":0},0,{"$f":"IF($C6=1,'RL krav full IFRS'!A17,\"\")","v":""},{"$f":"IF($C6=1,'RL krav full IFRS'!B17,\"\")","v":""},null,{"$f":"IF($C6=0,\"\",'RL krav full IFRS'!L17)","v":""}]
[{"$f":"'RL krav full IFRS'!A18","v":6},{"$f":"IF('RL krav full IFRS'!J18<>\"\",1,0)","v":0},0,{"$f":"IF($C7=1,'RL krav full IFRS'!A18,\"\")","v":""},{"$f":"IF($C7=1,'RL krav full IFRS'!B18,\"\")","v":""},null,{"$f":"IF($C7=0,\"\",'RL krav full IFRS'!L18)","v":""}]
[{"$f":"'RL krav full IFRS'!A20","v":7},{"$f":"IF('RL krav full IFRS'!J20<>\"\",1,0)","v":0},0,{"$f":"IF($C8=1,'RL krav full IFRS'!A20,\"\")","v":""},{"$f":"IF($C8=1,'RL krav full IFRS'!B20,\"\")","v":""},null,{"$f":"IF($C8=0,\"\",'RL krav full IFRS'!L20)","v":""}]
[{"$f":"'RL krav full IFRS'!A21","v":8},{"$f":"IF('RL krav full IFRS'!J21<>\"\",1,0)","v":0},0,{"$f":"IF($C9=1,'RL krav full IFRS'!A21,\"\")","v":""},{"$f":"IF($C9=1,'RL krav full IFRS'!B21,\"\")","v":""},null,{"$f":"IF($C9=0,\"\",'RL krav full IFRS'!L21)","v":""}]
[{"$f":"'RL krav full IFRS'!A22","v":9},{"$f":"IF('RL krav full IFRS'!J22<>\"\",1,0)","v":0},0,{"$f":"IF($C10=1,'RL krav full IFRS'!A22,\"\")","v":""},{"$f":"IF($C10=1,'RL krav full IFRS'!B22,\"\")","v":""},null,{"$f":"IF($C10=0,\"\",'RL krav full IFRS'!L22)","v":""}]
[{"$f":"'RL krav full IFRS'!A24","v":10},{"$f":"IF('RL krav full IFRS'!J24<>\"\",1,0)","v":0},0,{"$f":"IF($C11=1,'RL krav full IFRS'!A24,\"\")","v":""},{"$f":"IF($C11=1,'RL krav full IFRS'!B24,\"\")","v":""},null,{"$f":"IF($C11=0,\"\",'RL krav full IFRS'!L24)","v":""}]
[{"$f":"'RL krav full IFRS'!A25","v":11},{"$f":"IF('RL krav full IFRS'!J25<>\"\",1,0)","v":0},0,{"$f":"IF($C12=1,'RL krav full IFRS'!A25,\"\")","v":""},{"$f":"IF($C12=1,'RL krav full IFRS'!B25,\"\")","v":""},null,{"$f":"IF($C12=0,\"\",'RL krav full IFRS'!L25)","v":""}]
[{"$f":"'RL krav full IFRS'!A26","v":12},{"$f":"IF('RL krav full IFRS'!J26<>\"\",1,0)","v":0},0,{"$f":"IF($C13=1,'RL krav full IFRS'!A26,\"\")","v":""},{"$f":"IF($C13=1,'RL krav full IFRS'!B26,\"\")","v":""},null,{"$f":"IF($C13=0,\"\",'RL krav full IFRS'!L26)","v":""}]
[{"$f":"'RL krav full IFRS'!A27","v":13},{"$f":"IF('RL krav full IFRS'!J27<>\"\",1,0)","v":0},0,{"$f":"IF($C14=1,'RL krav full IFRS'!A27,\"\")","v":""},{"$f":"IF($C14=1,'RL krav full IFRS'!B27,\"\")","v":""},null,{"$f":"IF($C14=0,\"\",'RL krav full IFRS'!L27)","v":""}]
[{"$f":"'RL krav full IFRS'!A29","v":14},{"$f":"IF('RL krav full IFRS'!J29<>\"\",1,0)","v":0},0,{"$f":"IF($C15=1,'RL krav full IFRS'!A29,\"\")","v":""},{"$f":"IF($C15=1,'RL krav full IFRS'!B29,\"\")","v":""},null,{"$f":"IF($C15=0,\"\",'RL krav full IFRS'!L29)","v":""}]
[{"$f":"'RL krav full IFRS'!A30","v":15},{"$f":"IF('RL krav full IFRS'!J30<>\"\",1,0)","v":0},0,{"$f":"IF($C16=1,'RL krav full IFRS'!A30,\"\")","v":""},{"$f":"IF($C16=1,'RL krav full IFRS'!B30,\"\")","v":""},null,{"$f":"IF($C16=0,\"\",'RL krav full IFRS'!L30)","v":""}]
[{"$f":"'RL krav full IFRS'!A31","v":16},{"$f":"IF('RL krav full IFRS'!J31<>\"\",1,0)","v":0},0,{"$f":"IF($C17=1,'RL krav full IFRS'!A31,\"\")","v":""},{"$f":"IF($C17=1,'RL krav full IFRS'!B31,\"\")","v":""},null,{"$f":"IF($C17=0,\"\",'RL krav full IFRS'!L31)","v":""}]
[{"$f":"'RL krav full IFRS'!A32","v":17},{"$f":"IF('RL krav full IFRS'!J32<>\"\",1,0)","v":0},0,{"$f":"IF($C18=1,'RL krav full IFRS'!A32,\"\")","v":""},{"$f":"IF($C18=1,'RL krav full IFRS'!B32,\"\")","v":""},null,{"$f":"IF($C18=0,\"\",'RL krav full IFRS'!L32)","v":""}]
[{"$f":"'RL krav full IFRS'!A33","v":18},{"$f":"IF('RL krav full IFRS'!J33<>\"\",1,0)","v":0},0,{"$f":"IF($C19=1,'RL krav full IFRS'!A33,\"\")","v":""},{"$f":"IF($C19=1,'RL krav full IFRS'!B33,\"\")","v":""},null,{"$f":"IF($C19=0,\"\",'RL krav full IFRS'!L33)","v":""}]
[{"$f":"'RL krav full IFRS'!A34","v":19},{"$f":"IF('RL krav full IFRS'!J34<>\"\",1,0)","v":0},0,{"$f":"IF($C20=1,'RL krav full IFRS'!A34,\"\")","v":""},{"$f":"IF($C20=1,'RL krav full IFRS'!B34,\"\")","v":""},null,{"$f":"IF($C20=0,\"\",'RL krav full IFRS'!L34)","v":""}]
[{"$f":"'RL krav full IFRS'!A35","v":20},{"$f":"IF('RL krav full IFRS'!J35<>\"\",1,0)","v":0},0,{"$f":"IF($C21=1,'RL krav full IFRS'!A35,\"\")","v":""},{"$f":"IF($C21=1,'RL krav full IFRS'!B35,\"\")","v":""},null,{"$f":"IF($C21=0,\"\",'RL krav full IFRS'!L35)","v":""}]
[{"$f":"'RL krav full IFRS'!A37","v":21},{"$f":"IF('RL krav full IFRS'!J37<>\"\",1,0)","v":0},0,{"$f":"IF($C22=1,'RL krav full IFRS'!A37,\"\")","v":""},{"$f":"IF($C22=1,'RL krav full IFRS'!B37,\"\")","v":""},null,{"$f":"IF($C22=0,\"\",'RL krav full IFRS'!L37)","v":""}]
[{"$f":"'RL krav full IFRS'!A40","v":22},{"$f":"IF('RL krav full IFRS'!J40<>\"\",1,0)","v":0},0,{"$f":"IF($C23=1,'RL krav full IFRS'!A40,\"\")","v":""},{"$f":"IF($C23=1,'RL krav full IFRS'!B40,\"\")","v":""},null,{"$f":"IF($C23=0,\"\",'RL krav full IFRS'!L40)","v":""}]
[{"$f":"'RL krav full IFRS'!A41","v":23},{"$f":"IF('RL krav full IFRS'!J41<>\"\",1,0)","v":0},0,{"$f":"IF($C24=1,'RL krav full IFRS'!A41,\"\")","v":""},{"$f":"IF($C24=1,'RL krav full IFRS'!B41,\"\")","v":""},null,{"$f":"IF($C24=0,\"\",'RL krav full IFRS'!L41)","v":""}]
[{"$f":"'RL krav full IFRS'!A42","v":24},{"$f":"IF('RL krav full IFRS'!J42<>\"\",1,0)","v":0},0,{"$f":"IF($C25=1,'RL krav full IFRS'!A42,\"\")","v":""},{"$f":"IF($C25=1,'RL krav full IFRS'!B42,\"\")","v":""},null,{"$f":"IF($C25=0,\"\",'RL krav full IFRS'!L42)","v":""}]
[{"$f":"'RL krav full IFRS'!A44","v":25},{"$f":"IF('RL krav full IFRS'!J44<>\"\",1,0)","v":0},0,{"$f":"IF($C26=1,'RL krav full IFRS'!A44,\"\")","v":""},{"$f":"IF($C26=1,'RL krav full IFRS'!B44,\"\")","v":""},null,{"$f":"IF($C26=0,\"\",'RL krav full IFRS'!L44)","v":""}]
[{"$f":"'RL krav full IFRS'!A45","v":26},{"$f":"IF('RL krav full IFRS'!J45<>\"\",1,0)","v":0},0,{"$f":"IF($C27=1,'RL krav full IFRS'!A45,\"\")","v":""},{"$f":"IF($C27=1,'RL krav full IFRS'!B45,\"\")","v":""},null,{"$f":"IF($C27=0,\"\",'RL krav full IFRS'!L45)","v":""}]
[{"$f":"'RL krav full IFRS'!A47","v":27},{"$f":"IF('RL krav full IFRS'!J47<>\"\",1,0)","v":0},0,{"$f":"IF($C28=1,'RL krav full IFRS'!A47,\"\")","v":""},{"$f":"IF($C28=1,'RL krav full IFRS'!B47,\"\")","v":""},null,{"$f":"IF($C28=0,\"\",'RL krav full IFRS'!L47)","v":""}]
[{"$f":"'RL krav full IFRS'!A48","v":28},{"$f":"IF('RL krav full IFRS'!J48<>\"\",1,0)","v":0},0,{"$f":"IF($C29=1,'RL krav full IFRS'!A48,\"\")","v":""},{"$f":"IF($C29=1,'RL krav full IFRS'!B48,\"\")","v":""},null,{"$f":"IF($C29=0,\"\",'RL krav full IFRS'!L48)","v":""}]
[{"$f":"'RL krav full IFRS'!A50","v":29},{"$f":"IF('RL krav full IFRS'!J50<>\"\",1,0)","v":0},0,{"$f":"IF($C30=1,'RL krav full IFRS'!A50,\"\")","v":""},{"$f":"IF($C30=1,'RL krav full IFRS'!B50,\"\")","v":""},null,{"$f":"IF($C30=0,\"\",'RL krav full IFRS'!L50)","v":""}]
[{"$f":"'RL krav full IFRS'!A51","v":30},{"$f":"IF('RL krav full IFRS'!J51<>\"\",1,0)","v":0},0,{"$f":"IF($C31=1,'RL krav full IFRS'!A51,\"\")","v":""},{"$f":"IF($C31=1,'RL krav full IFRS'!B51,\"\")","v":""},null,{"$f":"IF($C31=0,\"\",'RL krav full IFRS'!L51)","v":""}]
[{"$f":"'RL krav full IFRS'!A52","v":31},{"$f":"IF('RL krav full IFRS'!J52<>\"\",1,0)","v":0},{"$f":"SUM(B32:B32)","v":0},{"$f":"IF($C32=1,'RL krav full IFRS'!A52,\"\")","v":""},{"$f":"IF($C32=1,'RL krav full IFRS'!B52,\"\")","v":""},null,{"$f":"IF($C32=0,\"\",'RL krav full IFRS'!L52)","v":""}]
[{"$f":"'RL krav full IFRS'!A53","v":32},{"$f":"IF('RL krav full IFRS'!J53<>\"\",1,0)","v":0},0,{"$f":"IF($C33=1,'RL krav full IFRS'!A53,\"\")","v":""},{"$f":"IF($C33=1,'RL krav full IFRS'!B53,\"\")","v":""},null,{"$f":"IF($C33=0,\"\",'RL krav full IFRS'!L53)","v":""}]
[{"$f":"'RL krav full IFRS'!A55","v":33},{"$f":"IF('RL krav full IFRS'!J55<>\"\",1,0)","v":0},0,{"$f":"IF($C34=1,'RL krav full IFRS'!A55,\"\")","v":""},{"$f":"IF($C34=1,'RL krav full IFRS'!B55,\"\")","v":""},null,{"$f":"IF($C34=0,\"\",'RL krav full IFRS'!L55)","v":""}]
[{"$f":"'RL krav full IFRS'!A58","v":34},{"$f":"IF('RL krav full IFRS'!J58<>\"\",1,0)","v":0},0,{"$f":"IF($C35=1,'RL krav full IFRS'!A58,\"\")","v":""},{"$f":"IF($C35=1,'RL krav full IFRS'!B58,\"\")","v":""},null,{"$f":"IF($C35=0,\"\",'RL krav full IFRS'!L58)","v":""}]
[{"$f":"'RL krav full IFRS'!A59","v":35},{"$f":"IF('RL krav full IFRS'!J59<>\"\",1,0)","v":0},0,{"$f":"IF($C36=1,'RL krav full IFRS'!A59,\"\")","v":""},{"$f":"IF($C36=1,'RL krav full IFRS'!B59,\"\")","v":""},null,{"$f":"IF($C36=0,\"\",'RL krav full IFRS'!L59)","v":""}]
[{"$f":"'RL krav full IFRS'!A60","v":36},{"$f":"IF('RL krav full IFRS'!J60<>\"\",1,0)","v":0},0,{"$f":"IF($C37=1,'RL krav full IFRS'!A60,\"\")","v":""},{"$f":"IF($C37=1,'RL krav full IFRS'!B60,\"\")","v":""},null,{"$f":"IF($C37=0,\"\",'RL krav full IFRS'!L60)","v":""}]
[{"$f":"'RL krav full IFRS'!A61","v":37},{"$f":"IF('RL krav full IFRS'!J61<>\"\",1,0)","v":0},0,{"$f":"IF($C38=1,'RL krav full IFRS'!A61,\"\")","v":""},{"$f":"IF($C38=1,'RL krav full IFRS'!B61,\"\")","v":""},null,{"$f":"IF($C38=0,\"\",'RL krav full IFRS'!L61)","v":""}]
[{"$f":"'RL krav full IFRS'!A63","v":38},{"$f":"IF('RL krav full IFRS'!J63<>\"\",1,0)","v":0},0,{"$f":"IF($C39=1,'RL krav full IFRS'!A63,\"\")","v":""},{"$f":"IF($C39=1,'RL krav full IFRS'!B63,\"\")","v":""},null,{"$f":"IF($C39=0,\"\",'RL krav full IFRS'!L63)","v":""}]
[{"$f":"'RL krav full IFRS'!A64","v":39},{"$f":"IF('RL krav full IFRS'!J64<>\"\",1,0)","v":0},0,{"$f":"IF($C40=1,'RL krav full IFRS'!A64,\"\")","v":""},{"$f":"IF($C40=1,'RL krav full IFRS'!B64,\"\")","v":""},null,{"$f":"IF($C40=0,\"\",'RL krav full IFRS'!L64)","v":""}]
[{"$f":"'RL krav full IFRS'!A68","v":40},{"$f":"IF('RL krav full IFRS'!J68<>\"\",1,0)","v":0},0,{"$f":"IF($C41=1,'RL krav full IFRS'!A68,\"\")","v":""},{"$f":"IF($C41=1,'RL krav full IFRS'!B68,\"\")","v":""},null,{"$f":"IF($C41=0,\"\",'RL krav full IFRS'!L68)","v":""}]
[{"$f":"'RL krav full IFRS'!A69","v":41},{"$f":"IF('RL krav full IFRS'!J69<>\"\",1,0)","v":0},0,{"$f":"IF($C42=1,'RL krav full IFRS'!A69,\"\")","v":""},{"$f":"IF($C42=1,'RL krav full IFRS'!B69,\"\")","v":""},null,{"$f":"IF($C42=0,\"\",'RL krav full IFRS'!L69)","v":""}]
[{"$f":"'RL krav full IFRS'!A70","v":42},{"$f":"IF('RL krav full IFRS'!J70<>\"\",1,0)","v":0},0,{"$f":"IF($C43=1,'RL krav full IFRS'!A70,\"\")","v":""},{"$f":"IF($C43=1,'RL krav full IFRS'!B70,\"\")","v":""},null,{"$f":"IF($C43=0,\"\",'RL krav full IFRS'!L70)","v":""}]
[{"$f":"'RL krav full IFRS'!A72","v":43},{"$f":"IF('RL krav full IFRS'!J72<>\"\",1,0)","v":0},0,{"$f":"IF($C44=1,'RL krav full IFRS'!A72,\"\")","v":""},{"$f":"IF($C44=1,'RL krav full IFRS'!B72,\"\")","v":""},null,{"$f":"IF($C44=0,\"\",'RL krav full IFRS'!L72)","v":""}]
[{"$f":"'RL krav full IFRS'!A73","v":44},{"$f":"IF('RL krav full IFRS'!J73<>\"\",1,0)","v":0},0,{"$f":"IF($C45=1,'RL krav full IFRS'!A73,\"\")","v":""},{"$f":"IF($C45=1,'RL krav full IFRS'!B73,\"\")","v":""},null,{"$f":"IF($C45=0,\"\",'RL krav full IFRS'!L73)","v":""}]
[{"$f":"'RL krav full IFRS'!A74","v":45},{"$f":"IF('RL krav full IFRS'!J74<>\"\",1,0)","v":0},0,{"$f":"IF($C46=1,'RL krav full IFRS'!A74,\"\")","v":""},{"$f":"IF($C46=1,'RL krav full IFRS'!B74,\"\")","v":""},null,{"$f":"IF($C46=0,\"\",'RL krav full IFRS'!L74)","v":""}]
[{"$f":"'RL krav full IFRS'!A75","v":46},{"$f":"IF('RL krav full IFRS'!J75<>\"\",1,0)","v":0},0,{"$f":"IF($C47=1,'RL krav full IFRS'!A75,\"\")","v":""},{"$f":"IF($C47=1,'RL krav full IFRS'!B75,\"\")","v":""},null,{"$f":"IF($C47=0,\"\",'RL krav full IFRS'!L75)","v":""}]
[{"$f":"'RL krav full IFRS'!A76","v":47},{"$f":"IF('RL krav full IFRS'!J76<>\"\",1,0)","v":0},0,{"$f":"IF($C48=1,'RL krav full IFRS'!A76,\"\")","v":""},{"$f":"IF($C48=1,'RL krav full IFRS'!B76,\"\")","v":""},null,{"$f":"IF($C48=0,\"\",'RL krav full IFRS'!L76)","v":""}]
[{"$f":"'RL krav full IFRS'!A77","v":48},{"$f":"IF('RL krav full IFRS'!J77<>\"\",1,0)","v":0},0,{"$f":"IF($C49=1,'RL krav full IFRS'!A77,\"\")","v":""},{"$f":"IF($C49=1,'RL krav full IFRS'!B77,\"\")","v":""},null,{"$f":"IF($C49=0,\"\",'RL krav full IFRS'!L77)","v":""}]
[{"$f":"'RL krav full IFRS'!A81","v":49},{"$f":"IF('RL krav full IFRS'!J81<>\"\",1,0)","v":0},0,{"$f":"IF($C50=1,'RL krav full IFRS'!A81,\"\")","v":""},{"$f":"IF($C50=1,'RL krav full IFRS'!B81,\"\")","v":""},null,{"$f":"IF($C50=0,\"\",'RL krav full IFRS'!L81)","v":""}]
[{"$f":"'RL krav full IFRS'!A82","v":50},{"$f":"IF('RL krav full IFRS'!J82<>\"\",1,0)","v":0},0,{"$f":"IF($C51=1,'RL krav full IFRS'!A82,\"\")","v":""},{"$f":"IF($C51=1,'RL krav full IFRS'!B82,\"\")","v":""},null,{"$f":"IF($C51=0,\"\",'RL krav full IFRS'!L82)","v":""}]
[{"$f":"'RL krav full IFRS'!A83","v":51},{"$f":"IF('RL krav full IFRS'!J83<>\"\",1,0)","v":0},0,{"$f":"IF($C52=1,'RL krav full IFRS'!A83,\"\")","v":""},{"$f":"IF($C52=1,'RL krav full IFRS'!B83,\"\")","v":""},null,{"$f":"IF($C52=0,\"\",'RL krav full IFRS'!L83)","v":""}]
[{"$f":"'RL krav full IFRS'!A84","v":52},{"$f":"IF('RL krav full IFRS'!J84<>\"\",1,0)","v":0},0,{"$f":"IF($C53=1,'RL krav full IFRS'!A84,\"\")","v":""},{"$f":"IF($C53=1,'RL krav full IFRS'!B84,\"\")","v":""},null,{"$f":"IF($C53=0,\"\",'RL krav full IFRS'!L84)","v":""}]
[{"$f":"'RL krav full IFRS'!A86","v":53},{"$f":"IF('RL krav full IFRS'!J86<>\"\",1,0)","v":0},0,{"$f":"IF($C54=1,'RL krav full IFRS'!A86,\"\")","v":""},{"$f":"IF($C54=1,'RL krav full IFRS'!B86,\"\")","v":""},null,{"$f":"IF($C54=0,\"\",'RL krav full IFRS'!L86)","v":""}]
[{"$f":"'RL krav full IFRS'!A87","v":54},{"$f":"IF('RL krav full IFRS'!J87<>\"\",1,0)","v":0},0,{"$f":"IF($C55=1,'RL krav full IFRS'!A87,\"\")","v":""},{"$f":"IF($C55=1,'RL krav full IFRS'!B87,\"\")","v":""},null,{"$f":"IF($C55=0,\"\",'RL krav full IFRS'!L87)","v":""}]
[{"$f":"'RL krav full IFRS'!A88","v":55},{"$f":"IF('RL krav full IFRS'!J88<>\"\",1,0)","v":0},0,{"$f":"IF($C56=1,'RL krav full IFRS'!A88,\"\")","v":""},{"$f":"IF($C56=1,'RL krav full IFRS'!B88,\"\")","v":""},null,{"$f":"IF($C56=0,\"\",'RL krav full IFRS'!L88)","v":""}]
[{"$f":"'RL krav full IFRS'!A90","v":56},{"$f":"IF('RL krav full IFRS'!J90<>\"\",1,0)","v":0},0,{"$f":"IF($C57=1,'RL krav full IFRS'!A90,\"\")","v":""},{"$f":"IF($C57=1,'RL krav full IFRS'!B90,\"\")","v":""},null,{"$f":"IF($C57=0,\"\",'RL krav full IFRS'!L90)","v":""}]
[{"$f":"'RL krav full IFRS'!A91","v":57},{"$f":"IF('RL krav full IFRS'!J91<>\"\",1,0)","v":0},0,{"$f":"IF($C58=1,'RL krav full IFRS'!A91,\"\")","v":""},{"$f":"IF($C58=1,'RL krav full IFRS'!B91,\"\")","v":""},null,{"$f":"IF($C58=0,\"\",'RL krav full IFRS'!L91)","v":""}]
[{"$f":"'RL krav full IFRS'!A92","v":58},{"$f":"IF('RL krav full IFRS'!J92<>\"\",1,0)","v":0},0,{"$f":"IF($C59=1,'RL krav full IFRS'!A92,\"\")","v":""},{"$f":"IF($C59=1,'RL krav full IFRS'!B92,\"\")","v":""},null,{"$f":"IF($C59=0,\"\",'RL krav full IFRS'!L92)","v":""}]
[{"$f":"'RL krav full IFRS'!A93","v":59},{"$f":"IF('RL krav full IFRS'!J93<>\"\",1,0)","v":0},0,{"$f":"IF($C60=1,'RL krav full IFRS'!A93,\"\")","v":""},{"$f":"IF($C60=1,'RL krav full IFRS'!B93,\"\")","v":""},null,{"$f":"IF($C60=0,\"\",'RL krav full IFRS'!L93)","v":""}]
[{"$f":"'RL krav full IFRS'!A94","v":60},{"$f":"IF('RL krav full IFRS'!J94<>\"\",1,0)","v":0},0,{"$f":"IF($C61=1,'RL krav full IFRS'!A94,\"\")","v":""},{"$f":"IF($C61=1,'RL krav full IFRS'!B94,\"\")","v":""},null,{"$f":"IF($C61=0,\"\",'RL krav full IFRS'!L94)","v":""}]
[{"$f":"'RL krav full IFRS'!A95","v":61},{"$f":"IF('RL krav full IFRS'!J95<>\"\",1,0)","v":0},0,{"$f":"IF($C62=1,'RL krav full IFRS'!A95,\"\")","v":""},{"$f":"IF($C62=1,'RL krav full IFRS'!B95,\"\")","v":""},null,{"$f":"IF($C62=0,\"\",'RL krav full IFRS'!L95)","v":""}]
[{"$f":"'RL krav full IFRS'!A97","v":62},{"$f":"IF('RL krav full IFRS'!J97<>\"\",1,0)","v":0},0,{"$f":"IF($C63=1,'RL krav full IFRS'!A97,\"\")","v":""},{"$f":"IF($C63=1,'RL krav full IFRS'!B97,\"\")","v":""},null,{"$f":"IF($C63=0,\"\",'RL krav full IFRS'!L97)","v":""}]
[{"$f":"'RL krav full IFRS'!A98","v":63},{"$f":"IF('RL krav full IFRS'!J98<>\"\",1,0)","v":0},{"$f":"SUM(B64:B64)","v":0},{"$f":"IF($C64=1,'RL krav full IFRS'!A98,\"\")","v":""},{"$f":"IF($C64=1,'RL krav full IFRS'!B98,\"\")","v":""},null,{"$f":"IF($C64=0,\"\",'RL krav full IFRS'!L98)","v":""}]
[{"$f":"'RL krav full IFRS'!A99","v":64},{"$f":"IF('RL krav full IFRS'!J99<>\"\",1,0)","v":0},0,{"$f":"IF($C65=1,'RL krav full IFRS'!A99,\"\")","v":""},{"$f":"IF($C65=1,'RL krav full IFRS'!B99,\"\")","v":""},null,{"$f":"IF($C65=0,\"\",'RL krav full IFRS'!L99)","v":""}]
[{"$f":"'RL krav full IFRS'!A100","v":65},{"$f":"IF('RL krav full IFRS'!J100<>\"\",1,0)","v":0},0,{"$f":"IF($C66=1,'RL krav full IFRS'!A100,\"\")","v":""},{"$f":"IF($C66=1,'RL krav full IFRS'!B100,\"\")","v":""},null,{"$f":"IF($C66=0,\"\",'RL krav full IFRS'!L100)","v":""}]
[{"$f":"'RL krav full IFRS'!A101","v":66},{"$f":"IF('RL krav full IFRS'!J101<>\"\",1,0)","v":0},0,{"$f":"IF($C67=1,'RL krav full IFRS'!A101,\"\")","v":""},{"$f":"IF($C67=1,'RL krav full IFRS'!B101,\"\")","v":""},null,{"$f":"IF($C67=0,\"\",'RL krav full IFRS'!L101)","v":""}]
[{"$f":"'RL krav full IFRS'!A102","v":67},{"$f":"IF('RL krav full IFRS'!J102<>\"\",1,0)","v":0},0,{"$f":"IF($C68=1,'RL krav full IFRS'!A102,\"\")","v":""},{"$f":"IF($C68=1,'RL krav full IFRS'!B102,\"\")","v":""},null,{"$f":"IF($C68=0,\"\",'RL krav full IFRS'!L102)","v":""}]
[{"$f":"'RL krav full IFRS'!A104","v":68},{"$f":"IF('RL krav full IFRS'!J104<>\"\",1,0)","v":0},0,{"$f":"IF($C69=1,'RL krav full IFRS'!A104,\"\")","v":""},{"$f":"IF($C69=1,'RL krav full IFRS'!B104,\"\")","v":""},null,{"$f":"IF($C69=0,\"\",'RL krav full IFRS'!L104)","v":""}]
[{"$f":"'RL krav full IFRS'!A105","v":69},{"$f":"IF('RL krav full IFRS'!J105<>\"\",1,0)","v":0},0,{"$f":"IF($C70=1,'RL krav full IFRS'!A105,\"\")","v":""},{"$f":"IF($C70=1,'RL krav full IFRS'!B105,\"\")","v":""},null,{"$f":"IF($C70=0,\"\",'RL krav full IFRS'!L105)","v":""}]
[{"$f":"'RL krav full IFRS'!A106","v":70},{"$f":"IF('RL krav full IFRS'!J106<>\"\",1,0)","v":0},0,{"$f":"IF($C71=1,'RL krav full IFRS'!A106,\"\")","v":""},{"$f":"IF($C71=1,'RL krav full IFRS'!B106,\"\")","v":""},null,{"$f":"IF($C71=0,\"\",'RL krav full IFRS'!L106)","v":""}]
[{"$f":"'RL krav full IFRS'!A107","v":71},{"$f":"IF('RL krav full IFRS'!J107<>\"\",1,0)","v":0},0,{"$f":"IF($C72=1,'RL krav full IFRS'!A107,\"\")","v":""},{"$f":"IF($C72=1,'RL krav full IFRS'!B107,\"\")","v":""},null,{"$f":"IF($C72=0,\"\",'RL krav full IFRS'!L107)","v":""}]
[{"$f":"'RL krav full IFRS'!A108","v":72},{"$f":"IF('RL krav full IFRS'!J108<>\"\",1,0)","v":0},0,{"$f":"IF($C73=1,'RL krav full IFRS'!A108,\"\")","v":""},{"$f":"IF($C73=1,'RL krav full IFRS'!B108,\"\")","v":""},null,{"$f":"IF($C73=0,\"\",'RL krav full IFRS'!L108)","v":""}]
[{"$f":"'RL krav full IFRS'!A109","v":73},{"$f":"IF('RL krav full IFRS'!J109<>\"\",1,0)","v":0},0,{"$f":"IF($C74=1,'RL krav full IFRS'!A109,\"\")","v":""},{"$f":"IF($C74=1,'RL krav full IFRS'!B109,\"\")","v":""},null,{"$f":"IF($C74=0,\"\",'RL krav full IFRS'!L109)","v":""}]
[{"$f":"'RL krav full IFRS'!A110","v":74},{"$f":"IF('RL krav full IFRS'!J110<>\"\",1,0)","v":0},0,{"$f":"IF($C75=1,'RL krav full IFRS'!A110,\"\")","v":""},{"$f":"IF($C75=1,'RL krav full IFRS'!B110,\"\")","v":""},null,{"$f":"IF($C75=0,\"\",'RL krav full IFRS'!L110)","v":""}]
[{"$f":"'RL krav full IFRS'!A112","v":75},{"$f":"IF('RL krav full IFRS'!J112<>\"\",1,0)","v":0},0,{"$f":"IF($C76=1,'RL krav full IFRS'!A112,\"\")","v":""},{"$f":"IF($C76=1,'RL krav full IFRS'!B112,\"\")","v":""},null,{"$f":"IF($C76=0,\"\",'RL krav full IFRS'!L112)","v":""}]
[{"$f":"'RL krav full IFRS'!A115","v":76},{"$f":"IF('RL krav full IFRS'!J115<>\"\",1,0)","v":0},0,{"$f":"IF($C77=1,'RL krav full IFRS'!A115,\"\")","v":""},{"$f":"IF($C77=1,'RL krav full IFRS'!B115,\"\")","v":""},null,{"$f":"IF($C77=0,\"\",'RL krav full IFRS'!L115)","v":""}]

{"sheet":"IA-svar","index":4,"n_rows":77,"n_cols":7,"rows_kept":77,"cut":false,"hidden":false,"merged":[]}
[null,null,{"$f":"COUNTIF(C2:C77,\"=1\")","v":0},"IA-svar",{"$f":"'RL krav full IFRS'!B2","v":0},{"$f":"'RL krav full IFRS'!B3","v":2024},"Kommentarer"]
[{"$f":"'RL krav full IFRS'!A12","v":1},{"$f":"IF('RL krav full IFRS'!K12<>\"\",1,0)","v":0},{"$f":"SUM(B2:B2)","v":0},{"$f":"IF($C2=1,'RL krav full IFRS'!A12,\"\")","v":""},{"$f":"IF($C2=1,'RL krav full IFRS'!B12,\"\")","v":""},null,{"$f":"IF($C2=0,\"\",'RL krav full IFRS'!L12)","v":""}]
[{"$f":"'RL krav full IFRS'!A13","v":2},{"$f":"IF('RL krav full IFRS'!K13<>\"\",1,0)","v":0},0,{"$f":"IF($C3=1,'RL krav full IFRS'!A13,\"\")","v":""},{"$f":"IF($C3=1,'RL krav full IFRS'!B13,\"\")","v":""},null,{"$f":"IF($C3=0,\"\",'RL krav full IFRS'!L13)","v":""}]
[{"$f":"'RL krav full IFRS'!A14","v":3},{"$f":"IF('RL krav full IFRS'!K14<>\"\",1,0)","v":0},0,{"$f":"IF($C4=1,'RL krav full IFRS'!A14,\"\")","v":""},{"$f":"IF($C4=1,'RL krav full IFRS'!B14,\"\")","v":""},null,{"$f":"IF($C4=0,\"\",'RL krav full IFRS'!L14)","v":""}]
[{"$f":"'RL krav full IFRS'!A15","v":4},{"$f":"IF('RL krav full IFRS'!K15<>\"\",1,0)","v":0},0,{"$f":"IF($C5=1,'RL krav full IFRS'!A15,\"\")","v":""},{"$f":"IF($C5=1,'RL krav full IFRS'!B15,\"\")","v":""},null,{"$f":"IF($C5=0,\"\",'RL krav full IFRS'!L15)","v":""}]
[{"$f":"'RL krav full IFRS'!A17","v":5},{"$f":"IF('RL krav full IFRS'!K17<>\"\",1,0)","v":0},0,{"$f":"IF($C6=1,'RL krav full IFRS'!A17,\"\")","v":""},{"$f":"IF($C6=1,'RL krav full IFRS'!B17,\"\")","v":""},null,{"$f":"IF($C6=0,\"\",'RL krav full IFRS'!L17)","v":""}]
[{"$f":"'RL krav full IFRS'!A18","v":6},{"$f":"IF('RL krav full IFRS'!K18<>\"\",1,0)","v":0},0,{"$f":"IF($C7=1,'RL krav full IFRS'!A18,\"\")","v":""},{"$f":"IF($C7=1,'RL krav full IFRS'!B18,\"\")","v":""},null,{"$f":"IF($C7=0,\"\",'RL krav full IFRS'!L18)","v":""}]
[{"$f":"'RL krav full IFRS'!A20","v":7},{"$f":"IF('RL krav full IFRS'!K20<>\"\",1,0)","v":0},0,{"$f":"IF($C8=1,'RL krav full IFRS'!A20,\"\")","v":""},{"$f":"IF($C8=1,'RL krav full IFRS'!B20,\"\")","v":""},null,{"$f":"IF($C8=0,\"\",'RL krav full IFRS'!L20)","v":""}]
[{"$f":"'RL krav full IFRS'!A21","v":8},{"$f":"IF('RL krav full IFRS'!K21<>\"\",1,0)","v":0},0,{"$f":"IF($C9=1,'RL krav full IFRS'!A21,\"\")","v":""},{"$f":"IF($C9=1,'RL krav full IFRS'!B21,\"\")","v":""},null,{"$f":"IF($C9=0,\"\",'RL krav full IFRS'!L21)","v":""}]
[{"$f":"'RL krav full IFRS'!A22","v":9},{"$f":"IF('RL krav full IFRS'!K22<>\"\",1,0)","v":0},0,{"$f":"IF($C10=1,'RL krav full IFRS'!A22,\"\")","v":""},{"$f":"IF($C10=1,'RL krav full IFRS'!B22,\"\")","v":""},null,{"$f":"IF($C10=0,\"\",'RL krav full IFRS'!L22)","v":""}]
[{"$f":"'RL krav full IFRS'!A24","v":10},{"$f":"IF('RL krav full IFRS'!K24<>\"\",1,0)","v":0},0,{"$f":"IF($C11=1,'RL krav full IFRS'!A24,\"\")","v":""},{"$f":"IF($C11=1,'RL krav full IFRS'!B24,\"\")","v":""},null,{"$f":"IF($C11=0,\"\",'RL krav full IFRS'!L24)","v":""}]
[{"$f":"'RL krav full IFRS'!A25","v":11},{"$f":"IF('RL krav full IFRS'!K25<>\"\",1,0)","v":0},0,{"$f":"IF($C12=1,'RL krav full IFRS'!A25,\"\")","v":""},{"$f":"IF($C12=1,'RL krav full IFRS'!B25,\"\")","v":""},null,{"$f":"IF($C12=0,\"\",'RL krav full IFRS'!L25)","v":""}]
[{"$f":"'RL krav full IFRS'!A26","v":12},{"$f":"IF('RL krav full IFRS'!K26<>\"\",1,0)","v":0},0,{"$f":"IF($C13=1,'RL krav full IFRS'!A26,\"\")","v":""},{"$f":"IF($C13=1,'RL krav full IFRS'!B26,\"\")","v":""},null,{"$f":"IF($C13=0,\"\",'RL krav full IFRS'!L26)","v":""}]
[{"$f":"'RL krav full IFRS'!A27","v":13},{"$f":"IF('RL krav full IFRS'!K27<>\"\",1,0)","v":0},0,{"$f":"IF($C14=1,'RL krav full IFRS'!A27,\"\")","v":""},{"$f":"IF($C14=1,'RL krav full IFRS'!B27,\"\")","v":""},null,{"$f":"IF($C14=0,\"\",'RL krav full IFRS'!L27)","v":""}]
[{"$f":"'RL krav full IFRS'!A29","v":14},{"$f":"IF('RL krav full IFRS'!K29<>\"\",1,0)","v":0},0,{"$f":"IF($C15=1,'RL krav full IFRS'!A29,\"\")","v":""},{"$f":"IF($C15=1,'RL krav full IFRS'!B29,\"\")","v":""},null,{"$f":"IF($C15=0,\"\",'RL krav full IFRS'!L29)","v":""}]
[{"$f":"'RL krav full IFRS'!A30","v":15},{"$f":"IF('RL krav full IFRS'!K30<>\"\",1,0)","v":0},0,{"$f":"IF($C16=1,'RL krav full IFRS'!A30,\"\")","v":""},{"$f":"IF($C16=1,'RL krav full IFRS'!B30,\"\")","v":""},null,{"$f":"IF($C16=0,\"\",'RL krav full IFRS'!L30)","v":""}]
[{"$f":"'RL krav full IFRS'!A31","v":16},{"$f":"IF('RL krav full IFRS'!K31<>\"\",1,0)","v":0},0,{"$f":"IF($C17=1,'RL krav full IFRS'!A31,\"\")","v":""},{"$f":"IF($C17=1,'RL krav full IFRS'!B31,\"\")","v":""},null,{"$f":"IF($C17=0,\"\",'RL krav full IFRS'!L31)","v":""}]
[{"$f":"'RL krav full IFRS'!A32","v":17},{"$f":"IF('RL krav full IFRS'!K32<>\"\",1,0)","v":0},0,{"$f":"IF($C18=1,'RL krav full IFRS'!A32,\"\")","v":""},{"$f":"IF($C18=1,'RL krav full IFRS'!B32,\"\")","v":""},null,{"$f":"IF($C18=0,\"\",'RL krav full IFRS'!L32)","v":""}]
[{"$f":"'RL krav full IFRS'!A33","v":18},{"$f":"IF('RL krav full IFRS'!K33<>\"\",1,0)","v":0},0,{"$f":"IF($C19=1,'RL krav full IFRS'!A33,\"\")","v":""},{"$f":"IF($C19=1,'RL krav full IFRS'!B33,\"\")","v":""},null,{"$f":"IF($C19=0,\"\",'RL krav full IFRS'!L33)","v":""}]
[{"$f":"'RL krav full IFRS'!A34","v":19},{"$f":"IF('RL krav full IFRS'!K34<>\"\",1,0)","v":0},0,{"$f":"IF($C20=1,'RL krav full IFRS'!A34,\"\")","v":""},{"$f":"IF($C20=1,'RL krav full IFRS'!B34,\"\")","v":""},null,{"$f":"IF($C20=0,\"\",'RL krav full IFRS'!L34)","v":""}]
[{"$f":"'RL krav full IFRS'!A35","v":20},{"$f":"IF('RL krav full IFRS'!K35<>\"\",1,0)","v":0},0,{"$f":"IF($C21=1,'RL krav full IFRS'!A35,\"\")","v":""},{"$f":"IF($C21=1,'RL krav full IFRS'!B35,\"\")","v":""},null,{"$f":"IF($C21=0,\"\",'RL krav full IFRS'!L35)","v":""}]
[{"$f":"'RL krav full IFRS'!A37","v":21},{"$f":"IF('RL krav full IFRS'!K37<>\"\",1,0)","v":0},0,{"$f":"IF($C22=1,'RL krav full IFRS'!A37,\"\")","v":""},{"$f":"IF($C22=1,'RL krav full IFRS'!B37,\"\")","v":""},null,{"$f":"IF($C22=0,\"\",'RL krav full IFRS'!L37)","v":""}]
[{"$f":"'RL krav full IFRS'!A40","v":22},{"$f":"IF('RL krav full IFRS'!K40<>\"\",1,0)","v":0},0,{"$f":"IF($C23=1,'RL krav full IFRS'!A40,\"\")","v":""},{"$f":"IF($C23=1,'RL krav full IFRS'!B40,\"\")","v":""},null,{"$f":"IF($C23=0,\"\",'RL krav full IFRS'!L40)","v":""}]
[{"$f":"'RL krav full IFRS'!A41","v":23},{"$f":"IF('RL krav full IFRS'!K41<>\"\",1,0)","v":0},0,{"$f":"IF($C24=1,'RL krav full IFRS'!A41,\"\")","v":""},{"$f":"IF($C24=1,'RL krav full IFRS'!B41,\"\")","v":""},null,{"$f":"IF($C24=0,\"\",'RL krav full IFRS'!L41)","v":""}]
[{"$f":"'RL krav full IFRS'!A42","v":24},{"$f":"IF('RL krav full IFRS'!K42<>\"\",1,0)","v":0},0,{"$f":"IF($C25=1,'RL krav full IFRS'!A42,\"\")","v":""},{"$f":"IF($C25=1,'RL krav full IFRS'!B42,\"\")","v":""},null,{"$f":"IF($C25=0,\"\",'RL krav full IFRS'!L42)","v":""}]
[{"$f":"'RL krav full IFRS'!A44","v":25},{"$f":"IF('RL krav full IFRS'!K44<>\"\",1,0)","v":0},0,{"$f":"IF($C26=1,'RL krav full IFRS'!A44,\"\")","v":""},{"$f":"IF($C26=1,'RL krav full IFRS'!B44,\"\")","v":""},null,{"$f":"IF($C26=0,\"\",'RL krav full IFRS'!L44)","v":""}]
[{"$f":"'RL krav full IFRS'!A45","v":26},{"$f":"IF('RL krav full IFRS'!K45<>\"\",1,0)","v":0},0,{"$f":"IF($C27=1,'RL krav full IFRS'!A45,\"\")","v":""},{"$f":"IF($C27=1,'RL krav full IFRS'!B45,\"\")","v":""},null,{"$f":"IF($C27=0,\"\",'RL krav full IFRS'!L45)","v":""}]
[{"$f":"'RL krav full IFRS'!A47","v":27},{"$f":"IF('RL krav full IFRS'!K47<>\"\",1,0)","v":0},0,{"$f":"IF($C28=1,'RL krav full IFRS'!A47,\"\")","v":""},{"$f":"IF($C28=1,'RL krav full IFRS'!B47,\"\")","v":""},null,{"$f":"IF($C28=0,\"\",'RL krav full IFRS'!L47)","v":""}]
[{"$f":"'RL krav full IFRS'!A48","v":28},{"$f":"IF('RL krav full IFRS'!K48<>\"\",1,0)","v":0},0,{"$f":"IF($C29=1,'RL krav full IFRS'!A48,\"\")","v":""},{"$f":"IF($C29=1,'RL krav full IFRS'!B48,\"\")","v":""},null,{"$f":"IF($C29=0,\"\",'RL krav full IFRS'!L48)","v":""}]
[{"$f":"'RL krav full IFRS'!A50","v":29},{"$f":"IF('RL krav full IFRS'!K50<>\"\",1,0)","v":0},0,{"$f":"IF($C30=1,'RL krav full IFRS'!A50,\"\")","v":""},{"$f":"IF($C30=1,'RL krav full IFRS'!B50,\"\")","v":""},null,{"$f":"IF($C30=0,\"\",'RL krav full IFRS'!L50)","v":""}]
[{"$f":"'RL krav full IFRS'!A51","v":30},{"$f":"IF('RL krav full IFRS'!K51<>\"\",1,0)","v":0},0,{"$f":"IF($C31=1,'RL krav full IFRS'!A51,\"\")","v":""},{"$f":"IF($C31=1,'RL krav full IFRS'!B51,\"\")","v":""},null,{"$f":"IF($C31=0,\"\",'RL krav full IFRS'!L51)","v":""}]
[{"$f":"'RL krav full IFRS'!A52","v":31},{"$f":"IF('RL krav full IFRS'!K52<>\"\",1,0)","v":0},0,{"$f":"IF($C32=1,'RL krav full IFRS'!A52,\"\")","v":""},{"$f":"IF($C32=1,'RL krav full IFRS'!B52,\"\")","v":""},null,{"$f":"IF($C32=0,\"\",'RL krav full IFRS'!L52)","v":""}]
[{"$f":"'RL krav full IFRS'!A53","v":32},{"$f":"IF('RL krav full IFRS'!K53<>\"\",1,0)","v":0},0,{"$f":"IF($C33=1,'RL krav full IFRS'!A53,\"\")","v":""},{"$f":"IF($C33=1,'RL krav full IFRS'!B53,\"\")","v":""},null,{"$f":"IF($C33=0,\"\",'RL krav full IFRS'!L53)","v":""}]
[{"$f":"'RL krav full IFRS'!A55","v":33},{"$f":"IF('RL krav full IFRS'!K55<>\"\",1,0)","v":0},{"$f":"SUM(B34:B34)","v":0},{"$f":"IF($C34=1,'RL krav full IFRS'!A55,\"\")","v":""},{"$f":"IF($C34=1,'RL krav full IFRS'!B55,\"\")","v":""},null,{"$f":"IF($C34=0,\"\",'RL krav full IFRS'!L55)","v":""}]
[{"$f":"'RL krav full IFRS'!A58","v":34},{"$f":"IF('RL krav full IFRS'!K58<>\"\",1,0)","v":0},0,{"$f":"IF($C35=1,'RL krav full IFRS'!A58,\"\")","v":""},{"$f":"IF($C35=1,'RL krav full IFRS'!B58,\"\")","v":""},null,{"$f":"IF($C35=0,\"\",'RL krav full IFRS'!L58)","v":""}]
[{"$f":"'RL krav full IFRS'!A59","v":35},{"$f":"IF('RL krav full IFRS'!K59<>\"\",1,0)","v":0},0,{"$f":"IF($C36=1,'RL krav full IFRS'!A59,\"\")","v":""},{"$f":"IF($C36=1,'RL krav full IFRS'!B59,\"\")","v":""},null,{"$f":"IF($C36=0,\"\",'RL krav full IFRS'!L59)","v":""}]
[{"$f":"'RL krav full IFRS'!A60","v":36},{"$f":"IF('RL krav full IFRS'!K60<>\"\",1,0)","v":0},0,{"$f":"IF($C37=1,'RL krav full IFRS'!A60,\"\")","v":""},{"$f":"IF($C37=1,'RL krav full IFRS'!B60,\"\")","v":""},null,{"$f":"IF($C37=0,\"\",'RL krav full IFRS'!L60)","v":""}]
[{"$f":"'RL krav full IFRS'!A61","v":37},{"$f":"IF('RL krav full IFRS'!K61<>\"\",1,0)","v":0},0,{"$f":"IF($C38=1,'RL krav full IFRS'!A61,\"\")","v":""},{"$f":"IF($C38=1,'RL krav full IFRS'!B61,\"\")","v":""},null,{"$f":"IF($C38=0,\"\",'RL krav full IFRS'!L61)","v":""}]
[{"$f":"'RL krav full IFRS'!A63","v":38},{"$f":"IF('RL krav full IFRS'!K63<>\"\",1,0)","v":0},0,{"$f":"IF($C39=1,'RL krav full IFRS'!A63,\"\")","v":""},{"$f":"IF($C39=1,'RL krav full IFRS'!B63,\"\")","v":""},null,{"$f":"IF($C39=0,\"\",'RL krav full IFRS'!L63)","v":""}]
[{"$f":"'RL krav full IFRS'!A64","v":39},{"$f":"IF('RL krav full IFRS'!K64<>\"\",1,0)","v":0},0,{"$f":"IF($C40=1,'RL krav full IFRS'!A64,\"\")","v":""},{"$f":"IF($C40=1,'RL krav full IFRS'!B64,\"\")","v":""},null,{"$f":"IF($C40=0,\"\",'RL krav full IFRS'!L64)","v":""}]
[{"$f":"'RL krav full IFRS'!A68","v":40},{"$f":"IF('RL krav full IFRS'!K68<>\"\",1,0)","v":0},0,{"$f":"IF($C41=1,'RL krav full IFRS'!A68,\"\")","v":""},{"$f":"IF($C41=1,'RL krav full IFRS'!B68,\"\")","v":""},null,{"$f":"IF($C41=0,\"\",'RL krav full IFRS'!L68)","v":""}]
[{"$f":"'RL krav full IFRS'!A69","v":41},{"$f":"IF('RL krav full IFRS'!K69<>\"\",1,0)","v":0},0,{"$f":"IF($C42=1,'RL krav full IFRS'!A69,\"\")","v":""},{"$f":"IF($C42=1,'RL krav full IFRS'!B69,\"\")","v":""},null,{"$f":"IF($C42=0,\"\",'RL krav full IFRS'!L69)","v":""}]
[{"$f":"'RL krav full IFRS'!A70","v":42},{"$f":"IF('RL krav full IFRS'!K70<>\"\",1,0)","v":0},0,{"$f":"IF($C43=1,'RL krav full IFRS'!A70,\"\")","v":""},{"$f":"IF($C43=1,'RL krav full IFRS'!B70,\"\")","v":""},null,{"$f":"IF($C43=0,\"\",'RL krav full IFRS'!L70)","v":""}]
[{"$f":"'RL krav full IFRS'!A72","v":43},{"$f":"IF('RL krav full IFRS'!K72<>\"\",1,0)","v":0},0,{"$f":"IF($C44=1,'RL krav full IFRS'!A72,\"\")","v":""},{"$f":"IF($C44=1,'RL krav full IFRS'!B72,\"\")","v":""},null,{"$f":"IF($C44=0,\"\",'RL krav full IFRS'!L72)","v":""}]
[{"$f":"'RL krav full IFRS'!A73","v":44},{"$f":"IF('RL krav full IFRS'!K73<>\"\",1,0)","v":0},0,{"$f":"IF($C45=1,'RL krav full IFRS'!A73,\"\")","v":""},{"$f":"IF($C45=1,'RL krav full IFRS'!B73,\"\")","v":""},null,{"$f":"IF($C45=0,\"\",'RL krav full IFRS'!L73)","v":""}]
[{"$f":"'RL krav full IFRS'!A74","v":45},{"$f":"IF('RL krav full IFRS'!K74<>\"\",1,0)","v":0},0,{"$f":"IF($C46=1,'RL krav full IFRS'!A74,\"\")","v":""},{"$f":"IF($C46=1,'RL krav full IFRS'!B74,\"\")","v":""},null,{"$f":"IF($C46=0,\"\",'RL krav full IFRS'!L74)","v":""}]
[{"$f":"'RL krav full IFRS'!A75","v":46},{"$f":"IF('RL krav full IFRS'!K75<>\"\",1,0)","v":0},0,{"$f":"IF($C47=1,'RL krav full IFRS'!A75,\"\")","v":""},{"$f":"IF($C47=1,'RL krav full IFRS'!B75,\"\")","v":""},null,{"$f":"IF($C47=0,\"\",'RL krav full IFRS'!L75)","v":""}]
[{"$f":"'RL krav full IFRS'!A76","v":47},{"$f":"IF('RL krav full IFRS'!K76<>\"\",1,0)","v":0},0,{"$f":"IF($C48=1,'RL krav full IFRS'!A76,\"\")","v":""},{"$f":"IF($C48=1,'RL krav full IFRS'!B76,\"\")","v":""},null,{"$f":"IF($C48=0,\"\",'RL krav full IFRS'!L76)","v":""}]
[{"$f":"'RL krav full IFRS'!A77","v":48},{"$f":"IF('RL krav full IFRS'!K77<>\"\",1,0)","v":0},0,{"$f":"IF($C49=1,'RL krav full IFRS'!A77,\"\")","v":""},{"$f":"IF($C49=1,'RL krav full IFRS'!B77,\"\")","v":""},null,{"$f":"IF($C49=0,\"\",'RL krav full IFRS'!L77)","v":""}]
[{"$f":"'RL krav full IFRS'!A81","v":49},{"$f":"IF('RL krav full IFRS'!K81<>\"\",1,0)","v":0},0,{"$f":"IF($C50=1,'RL krav full IFRS'!A81,\"\")","v":""},{"$f":"IF($C50=1,'RL krav full IFRS'!B81,\"\")","v":""},null,{"$f":"IF($C50=0,\"\",'RL krav full IFRS'!L81)","v":""}]
[{"$f":"'RL krav full IFRS'!A82","v":50},{"$f":"IF('RL krav full IFRS'!K82<>\"\",1,0)","v":0},0,{"$f":"IF($C51=1,'RL krav full IFRS'!A82,\"\")","v":""},{"$f":"IF($C51=1,'RL krav full IFRS'!B82,\"\")","v":""},null,{"$f":"IF($C51=0,\"\",'RL krav full IFRS'!L82)","v":""}]
[{"$f":"'RL krav full IFRS'!A83","v":51},{"$f":"IF('RL krav full IFRS'!K83<>\"\",1,0)","v":0},0,{"$f":"IF($C52=1,'RL krav full IFRS'!A83,\"\")","v":""},{"$f":"IF($C52=1,'RL krav full IFRS'!B83,\"\")","v":""},null,{"$f":"IF($C52=0,\"\",'RL krav full IFRS'!L83)","v":""}]
[{"$f":"'RL krav full IFRS'!A84","v":52},{"$f":"IF('RL krav full IFRS'!K84<>\"\",1,0)","v":0},0,{"$f":"IF($C53=1,'RL krav full IFRS'!A84,\"\")","v":""},{"$f":"IF($C53=1,'RL krav full IFRS'!B84,\"\")","v":""},null,{"$f":"IF($C53=0,\"\",'RL krav full IFRS'!L84)","v":""}]
[{"$f":"'RL krav full IFRS'!A86","v":53},{"$f":"IF('RL krav full IFRS'!K86<>\"\",1,0)","v":0},0,{"$f":"IF($C54=1,'RL krav full IFRS'!A86,\"\")","v":""},{"$f":"IF($C54=1,'RL krav full IFRS'!B86,\"\")","v":""},null,{"$f":"IF($C54=0,\"\",'RL krav full IFRS'!L86)","v":""}]
[{"$f":"'RL krav full IFRS'!A87","v":54},{"$f":"IF('RL krav full IFRS'!K87<>\"\",1,0)","v":0},0,{"$f":"IF($C55=1,'RL krav full IFRS'!A87,\"\")","v":""},{"$f":"IF($C55=1,'RL krav full IFRS'!B87,\"\")","v":""},null,{"$f":"IF($C55=0,\"\",'RL krav full IFRS'!L87)","v":""}]
[{"$f":"'RL krav full IFRS'!A88","v":55},{"$f":"IF('RL krav full IFRS'!K88<>\"\",1,0)","v":0},0,{"$f":"IF($C56=1,'RL krav full IFRS'!A88,\"\")","v":""},{"$f":"IF($C56=1,'RL krav full IFRS'!B88,\"\")","v":""},null,{"$f":"IF($C56=0,\"\",'RL krav full IFRS'!L88)","v":""}]
[{"$f":"'RL krav full IFRS'!A90","v":56},{"$f":"IF('RL krav full IFRS'!K90<>\"\",1,0)","v":0},0,{"$f":"IF($C57=1,'RL krav full IFRS'!A90,\"\")","v":""},{"$f":"IF($C57=1,'RL krav full IFRS'!B90,\"\")","v":""},null,{"$f":"IF($C57=0,\"\",'RL krav full IFRS'!L90)","v":""}]
[{"$f":"'RL krav full IFRS'!A91","v":57},{"$f":"IF('RL krav full IFRS'!K91<>\"\",1,0)","v":0},0,{"$f":"IF($C58=1,'RL krav full IFRS'!A91,\"\")","v":""},{"$f":"IF($C58=1,'RL krav full IFRS'!B91,\"\")","v":""},null,{"$f":"IF($C58=0,\"\",'RL krav full IFRS'!L91)","v":""}]
[{"$f":"'RL krav full IFRS'!A92","v":58},{"$f":"IF('RL krav full IFRS'!K92<>\"\",1,0)","v":0},0,{"$f":"IF($C59=1,'RL krav full IFRS'!A92,\"\")","v":""},{"$f":"IF($C59=1,'RL krav full IFRS'!B92,\"\")","v":""},null,{"$f":"IF($C59=0,\"\",'RL krav full IFRS'!L92)","v":""}]
[{"$f":"'RL krav full IFRS'!A93","v":59},{"$f":"IF('RL krav full IFRS'!K93<>\"\",1,0)","v":0},0,{"$f":"IF($C60=1,'RL krav full IFRS'!A93,\"\")","v":""},{"$f":"IF($C60=1,'RL krav full IFRS'!B93,\"\")","v":""},null,{"$f":"IF($C60=0,\"\",'RL krav full IFRS'!L93)","v":""}]
[{"$f":"'RL krav full IFRS'!A94","v":60},{"$f":"IF('RL krav full IFRS'!K94<>\"\",1,0)","v":0},0,{"$f":"IF($C61=1,'RL krav full IFRS'!A94,\"\")","v":""},{"$f":"IF($C61=1,'RL krav full IFRS'!B94,\"\")","v":""},null,{"$f":"IF($C61=0,\"\",'RL krav full IFRS'!L94)","v":""}]
[{"$f":"'RL krav full IFRS'!A95","v":61},{"$f":"IF('RL krav full IFRS'!K95<>\"\",1,0)","v":0},0,{"$f":"IF($C62=1,'RL krav full IFRS'!A95,\"\")","v":""},{"$f":"IF($C62=1,'RL krav full IFRS'!B95,\"\")","v":""},null,{"$f":"IF($C62=0,\"\",'RL krav full IFRS'!L95)","v":""}]
[{"$f":"'RL krav full IFRS'!A97","v":62},{"$f":"IF('RL krav full IFRS'!K97<>\"\",1,0)","v":0},0,{"$f":"IF($C63=1,'RL krav full IFRS'!A97,\"\")","v":""},{"$f":"IF($C63=1,'RL krav full IFRS'!B97,\"\")","v":""},null,{"$f":"IF($C63=0,\"\",'RL krav full IFRS'!L97)","v":""}]
[{"$f":"'RL krav full IFRS'!A98","v":63},{"$f":"IF('RL krav full IFRS'!K98<>\"\",1,0)","v":0},0,{"$f":"IF($C64=1,'RL krav full IFRS'!A98,\"\")","v":""},{"$f":"IF($C64=1,'RL krav full IFRS'!B98,\"\")","v":""},null,{"$f":"IF($C64=0,\"\",'RL krav full IFRS'!L98)","v":""}]
[{"$f":"'RL krav full IFRS'!A99","v":64},{"$f":"IF('RL krav full IFRS'!K99<>\"\",1,0)","v":0},0,{"$f":"IF($C65=1,'RL krav full IFRS'!A99,\"\")","v":""},{"$f":"IF($C65=1,'RL krav full IFRS'!B99,\"\")","v":""},null,{"$f":"IF($C65=0,\"\",'RL krav full IFRS'!L99)","v":""}]
[{"$f":"'RL krav full IFRS'!A100","v":65},{"$f":"IF('RL krav full IFRS'!K100<>\"\",1,0)","v":0},{"$f":"SUM(B66:B66)","v":0},{"$f":"IF($C66=1,'RL krav full IFRS'!A100,\"\")","v":""},{"$f":"IF($C66=1,'RL krav full IFRS'!B100,\"\")","v":""},null,{"$f":"IF($C66=0,\"\",'RL krav full IFRS'!L100)","v":""}]
[{"$f":"'RL krav full IFRS'!A101","v":66},{"$f":"IF('RL krav full IFRS'!K101<>\"\",1,0)","v":0},0,{"$f":"IF($C67=1,'RL krav full IFRS'!A101,\"\")","v":""},{"$f":"IF($C67=1,'RL krav full IFRS'!B101,\"\")","v":""},null,{"$f":"IF($C67=0,\"\",'RL krav full IFRS'!L101)","v":""}]
[{"$f":"'RL krav full IFRS'!A102","v":67},{"$f":"IF('RL krav full IFRS'!K102<>\"\",1,0)","v":0},0,{"$f":"IF($C68=1,'RL krav full IFRS'!A102,\"\")","v":""},{"$f":"IF($C68=1,'RL krav full IFRS'!B102,\"\")","v":""},null,{"$f":"IF($C68=0,\"\",'RL krav full IFRS'!L102)","v":""}]
[{"$f":"'RL krav full IFRS'!A104","v":68},{"$f":"IF('RL krav full IFRS'!K104<>\"\",1,0)","v":0},0,{"$f":"IF($C69=1,'RL krav full IFRS'!A104,\"\")","v":""},{"$f":"IF($C69=1,'RL krav full IFRS'!B104,\"\")","v":""},null,{"$f":"IF($C69=0,\"\",'RL krav full IFRS'!L104)","v":""}]
[{"$f":"'RL krav full IFRS'!A105","v":69},{"$f":"IF('RL krav full IFRS'!K105<>\"\",1,0)","v":0},0,{"$f":"IF($C70=1,'RL krav full IFRS'!A105,\"\")","v":""},{"$f":"IF($C70=1,'RL krav full IFRS'!B105,\"\")","v":""},null,{"$f":"IF($C70=0,\"\",'RL krav full IFRS'!L105)","v":""}]
[{"$f":"'RL krav full IFRS'!A106","v":70},{"$f":"IF('RL krav full IFRS'!K106<>\"\",1,0)","v":0},0,{"$f":"IF($C71=1,'RL krav full IFRS'!A106,\"\")","v":""},{"$f":"IF($C71=1,'RL krav full IFRS'!B106,\"\")","v":""},null,{"$f":"IF($C71=0,\"\",'RL krav full IFRS'!L106)","v":""}]
[{"$f":"'RL krav full IFRS'!A107","v":71},{"$f":"IF('RL krav full IFRS'!K107<>\"\",1,0)","v":0},0,{"$f":"IF($C72=1,'RL krav full IFRS'!A107,\"\")","v":""},{"$f":"IF($C72=1,'RL krav full IFRS'!B107,\"\")","v":""},null,{"$f":"IF($C72=0,\"\",'RL krav full IFRS'!L107)","v":""}]
[{"$f":"'RL krav full IFRS'!A108","v":72},{"$f":"IF('RL krav full IFRS'!K108<>\"\",1,0)","v":0},0,{"$f":"IF($C73=1,'RL krav full IFRS'!A108,\"\")","v":""},{"$f":"IF($C73=1,'RL krav full IFRS'!B108,\"\")","v":""},null,{"$f":"IF($C73=0,\"\",'RL krav full IFRS'!L108)","v":""}]
[{"$f":"'RL krav full IFRS'!A109","v":73},{"$f":"IF('RL krav full IFRS'!K109<>\"\",1,0)","v":0},0,{"$f":"IF($C74=1,'RL krav full IFRS'!A109,\"\")","v":""},{"$f":"IF($C74=1,'RL krav full IFRS'!B109,\"\")","v":""},null,{"$f":"IF($C74=0,\"\",'RL krav full IFRS'!L109)","v":""}]
[{"$f":"'RL krav full IFRS'!A110","v":74},{"$f":"IF('RL krav full IFRS'!K110<>\"\",1,0)","v":0},0,{"$f":"IF($C75=1,'RL krav full IFRS'!A110,\"\")","v":""},{"$f":"IF($C75=1,'RL krav full IFRS'!B110,\"\")","v":""},null,{"$f":"IF($C75=0,\"\",'RL krav full IFRS'!L110)","v":""}]
[{"$f":"'RL krav full IFRS'!A112","v":75},{"$f":"IF('RL krav full IFRS'!K112<>\"\",1,0)","v":0},0,{"$f":"IF($C76=1,'RL krav full IFRS'!A112,\"\")","v":""},{"$f":"IF($C76=1,'RL krav full IFRS'!B112,\"\")","v":""},null,{"$f":"IF($C76=0,\"\",'RL krav full IFRS'!L112)","v":""}]
[{"$f":"'RL krav full IFRS'!A115","v":76},{"$f":"IF('RL krav full IFRS'!K115<>\"\",1,0)","v":0},0,{"$f":"IF($C77=1,'RL krav full IFRS'!A115,\"\")","v":""},{"$f":"IF($C77=1,'RL krav full IFRS'!B115,\"\")","v":""},null,{"$f":"IF($C77=0,\"\",'RL krav full IFRS'!L115)","v":""}]